Workbook

Sheet 目录
A1: 2024年财政预算执行情况和2025年财政预算（草案）附表目录
A2: 第一部分 2024年财政预算执行情况
A3: 表1.2024年一般公共预算收入总表……………………………………………………………………………………………………………………1
A4: 表2.2024年一般公共预算支出总表……………………………………………………………………………………………………………………2
A5: 表3.2024年一般公共预算经济分类支出情况表………………………………………………………………………………………………………3
A6: 表4.2024年一般公共预算收支平衡表…………………………………………………………………………………………………………………6
A7: 表5.2024年政府一般债务限额和余额情况表…………………………………………………………………………………………………………10
A8: 表6.2024年一般公共预算“三公”经费、会议费、培训费支出情况表……………………………………………………………………………11
A9: 表7.2024年政府性基金预算收支平衡表………………………………………………………………………………………………………………12
A10: 表8.2024年国有资本经营预算收支平衡表……………………………………………………………………………………………………………13
A11: 表9.2024年社会保险基金预算收支及结余情况表……………………………………………………………………………………………………14
A12: 第二部分 2025年财政预算（草案）
A13: 表10.2025年大口径财政收入预算表 …………………………………………………………………………………………………………………15
A14: 表11.2025年一般公共预算收入预算表 ………………………………………………………………………………………………………………17
A15: 表12.2025年一般公共预算支出总表 …………………………………………………………………………………………………………………19
A16: 表13.2025年一般公共预算经济分类支出预算表 ……………………………………………………………………………………………………20
A17: 表14.2025年一般公共预算收支平衡表 ………………………………………………………………………………………………………………23
A18: 表15.2025年一般公共预算“三公”经费、会议费、培训费支出预算表 …………………………………………………………………………27
A19: 表16.提前下达2025年共同财政事权和专项转移支付补助资金（一般公共预算） ………………………………………………………………28
A20: 表17.2025年政府性基金收支预算表 …………………………………………………………………………………………………………………29
A21: 表18.提前下达2025年共同财政事权和专项转移支付补助资金（政府性基金预算） ……………………………………………………………43
A22: 表19.2025年社会保险基金收支预算表 ………………………………………………………………………………………………………………44
A23: 表20.2025年国有资本经营收支预算表 ………………………………………………………………………………………………………………45
A24: 表21.2025年度政府采购预算 …………………………………………………………………………………………………………………………46

Sheet 2024年封面
A2: 第一部分：2024年财政预算执行情况

Sheet 2024年收入明细表
A1: 表1
A2: 2024年一般公共预算收入总表
C3: 单位：万元
A4: 预算科目 | B4: 上年决算数 | C4: 决算（执行）数 | D4: 同比增长
A5: 一、税收收入 | B5: =SUM(B6:B20) -> 13992 | C5: =SUM(C6:C20) -> 17,222 | D5: =(C5-B5)/B5 -> 23.08%
A6: 增值税 | B6: 8,249 | C6: 9,280 | D6: =(C6-B6)/B6 -> 12.50%
A7: 企业所得税 | B7: 809 | C7: 1,048 | D7: =(C7-B7)/B7 -> 29.54%
A8: 个人所得税 | B8: 167 | C8: 179 | D8: 7.19%
A9: 资源税 | B9: 2,798 | C9: 3,340 | D9: 19.37%
A10: 城市维护建设税 | B10: 471 | C10: 382 | D10: -18.90%
A11: 房产税 | B11: 434 | C11: 470 | D11: 8.29%
A12: 印花税 | B12: 215 | C12: 399 | D12: 85.58%
A13: 城镇土地使用税 | B13: 578 | C13: 587 | D13: 1.56%
A14: 土地增值税 | B14: -11 | C14: 8 | D14: -172.73%
A15: 车船税 | B15: 215 | C15: 229 | D15: 6.51%
A16: 耕地占用税 | B16: 2 | C16: 1,156 | D16: 57700.00%
A17: 契税 | B17: 57 | C17: 116 | D17: 103.51%
A18: 烟叶税
A19: 环境保护税 | B19: 8 | C19: 28 | D19: 250.00%
A20: 其他税收收入
A21: 二、非税收入 | B21: =SUM(B22:B27) -> 17874 | C21: =SUM(C22:C30) -> 16,789 | D21: -6.07%
A22: 专项收入 | B22: 1,576 | C22: 2,558 | D22: 62.31%
A23: 行政事业性收费收入 | B23: 2,206 | C23: 1,197 | D23: -45.74%
A24: 罚没收入 | B24: 1,183 | C24: 1,004 | D24: -15.13%
A25: 国有资本经营收入 | B25: 7,517 | C25: 60
A26: 国有资源(资产)有偿使用收入 | B26: 5,348 | C26: 11,880 | D26: 122.14%
A27: 其他收入 | B27: 44 | C27: 0 | D27: -100.00%
A28: 捐赠收入 | B28: 0 | C28: 51
A29: 政府住房基金收入 | B29: 0 | C29: 39
A31: 本年收入合计 | B31: =+B21+B5 -> 31866 | C31: =C5+C21 -> 34,011 | D31: 6.73%

Sheet 2024年支出明细表
A1: 表2
A2: 2024年一般公共预算支出总表
D3: 单位：万元
A4: 预算科目 | B4: 上年决算数 | C4: 决算（执行）数 | D4: 同比增长
A5: 一、一般公共服务支出 | B5: 23,602 | C5: 23,303 | D5: =(C5-B5)/B5 -> -1.27%
A6: 二、外交支出
A7: 三、国防支出 | B7: 36 | C7: 74 | D7: =(C7-B7)/B7 -> 105.56%
A8: 四、公共安全支出 | B8: 5,017 | C8: 5,199 | D8: 3.63%
A9: 五、教育支出 | B9: 13,061 | C9: 13,621 | D9: 4.29%
A10: 六、科学技术支出 | B10: 3,459 | C10: 3,627 | D10: 4.86%
A11: 七、文化旅游体育与传媒支出 | B11: 11,961 | C11: 11,781 | D11: -1.50%
A12: 八、社会保障和就业支出 | B12: 17,213 | C12: 18,473 | D12: 7.32%
A13: 九、卫生健康支出 | B13: 11,899 | C13: 11,139 | D13: -6.39%
A14: 十、节能环保支出 | B14: 8,532 | C14: 4,984 | D14: -41.58%
A15: 十一、城乡社区支出 | B15: 3,139 | C15: 2,995 | D15: -4.59%
A16: 十二、农林水支出 | B16: 66,880 | C16: 70,363 | D16: 5.21%
A17: 十三、交通运输支出 | B17: 8,327 | C17: 10,082 | D17: 21.08%
A18: 十四、资源勘探工业信息等支出 | B18: 2,928 | C18: 5,003 | D18: 70.87%
A19: 十五、商业服务业等支出 | B19: 190 | C19: 225 | D19: 18.42%
A20: 十六、金融支出 | B20: 30 | C20: 0
A21: 十七、援助其他地区支出
A22: 十八、自然资源海洋气象等支出 | B22: 2,979 | C22: 2,345 | D22: -21.28%
A23: 十九、住房保障支出 | B23: 3,504 | C23: 3,648 | D23: 4.11%
A24: 二十、粮油物资储备支出 | B24: 100 | C24: 0 | D24: -100.00%
A25: 二十一、灾害防治及应急管理支出 | B25: 2,083 | C25: 3,037 | D25: 45.80%
A26: 二十二、其他支出
A27: 二十三、债务付息支出 | B27: 1,429 | C27: 1,564 | D27: 9.45%
A28: 其中:地方政府一般债券付息支出 | B28: 1,429 | C28: 1,564 | D28: 9.45%
A29: 二十四、债务发行费用支出 | B29: 7 | C29: 8 | D29: 14.29%
A31: 本年支出合计 | B31: =SUM(B5:B29)-1429 -> 186376 | C31: =SUM(C5:C27,C29) -> 191,471 | D31: 2.73%

Sheet 2024年一般公共预算经济分类支出情况表
A1: 表3
A2: 2024年一般公共预算经济分类支出情况表
D3: 单位:万元
A4: 科目编码 | B4: 科目名称 | C4: 总支出 | D4: 基本支出
B5: 一般公共预算经济分类支出合计 | C5: =SUM(C6,C11,C22,C30,C37,C41,C44,C48,C53,C59,C63,C68) -> 191,471 | D5: =SUM(D6,D11,D22,D30,D37,D41,D44,D48,D53,D59,D68) -> 49,319
A6: 501 | B6: 机关工资福利支出 | C6: =SUM(C7:C10) -> 28,202 | D6: =SUM(D7:D10) -> 23,082
A7: 50101 | B7: 工资奖金津补贴 | C7: 17,685 | D7: 16,776
A8: 50102 | B8: 社会保障缴费 | C8: 4,818 | D8: 4,067
A9: 50103 | B9: 住房公积金 | C9: 2,079 | D9: 2,070
A10: 50199 | B10: 其他工资福利支出 | C10: 3,620 | D10: 169
A11: 502 | B11: 机关商品和服务支出 | C11: =SUM(C12:C21) -> 19,407 | D11: =SUM(D12:D21) -> 3,943
A12: 50201 | B12: 办公经费 | C12: 12,229 | D12: 3,544
A13: 50202 | B13: 会议费 | C13: 55 | D13: 10
A14: 50203 | B14: 培训费 | C14: 186 | D14: 20
A15: 50204 | B15: 专用材料购置费 | C15: 74
A16: 50205 | B16: 委托业务费 | C16: 1,341 | D16: 119
A17: 50206 | B17: 公务接待费 | C17: 130 | D17: 130
A18: 50207 | B18: 因公出国(境)费用
A19: 50208 | B19: 公务用车运行维护费 | C19: 95 | D19: 28
A20: 50209 | B20: 维修(护)费 | C20: 2,612 | D20: 91
A21: 50299 | B21: 其他商品和服务支出 | C21: 2,685 | D21: 1
A22: 503 | B22: 机关资本性支出(一) | C22: =SUM(C23:C29) -> 39,933 | D22: =SUM(D23:D29) -> 3
A23: 50301 | B23: 房屋建筑物购建 | C23: 2,023
A24: 50302 | B24: 基础设施建设 | C24: 32,662
A25: 50303 | B25: 公务用车购置 | C25: 37
A26: 50305 | B26: 土地征迁补偿和安置支出 | C26: 1,112
A27: 50306 | B27: 设备购置 | C27: 1,802 | D27: 3
A28: 50307 | B28: 大型修缮 | C28: 603
A29: 50399 | B29: 其他资本性支出 | C29: 1,694
A30: 504 | B30: 机关资本性支出(二) | C30: =SUM(C31:C36) -> 5,059 | D30: =SUM(D31:D36) -> 0
A31: 50401 | B31: 房屋建筑物购建 | C31: 688 | D31: 0
A32: 50402 | B32: 基础设施建设 | C32: 4,164 | D32: 0
A33: 50403 | B33: 公务用车购置 | D33: 0
A34: 50404 | B34: 设备购置 | C34: 110
A35: 50405 | B35: 大型修缮 | C35: 75 | D35: 0
A36: 50499 | B36: 其他资本性支出 | C36: 22 | D36: 0
A37: 505 | B37: 对事业单位经常性补助 | C37: =SUM(C38:C40) -> 26,258 | D37: =SUM(D38:D40) -> 21,201
A38: 50501 | B38: 工资福利支出 | C38: 21,234 | D38: 19,843
A39: 50502 | B39: 商品和服务支出 | C39: 5,024 | D39: 1,358
A40: 50599 | B40: 其他对事业单位补助 | C40: 0 | D40: 0
A41: 506 | B41: 对事业单位资本性补助 | C41: =SUM(C42:C43) -> 14,151 | D41: =SUM(D42:D43) -> 0
A42: 50601 | B42: 资本性支出(一) | C42: 13,974 | D42: 0
A43: 50602 | B43: 资本性支出(二) | C43: 177 | D43: 0
A44: 507 | B44: 对企业补助 | C44: =SUM(C45:C47) -> 6,819 | D44: =SUM(D45:D47) -> 0
A45: 50701 | B45: 费用补贴 | C45: 6,466 | D45: 0
A46: 50702 | B46: 利息补贴 | C46: 318 | D46: 0
A47: 50799 | B47: 其他对企业补助 | C47: 35 | D47: 0
A48: 508 | B48: 对企业资本性支出 | C48: =SUM(C49:C52) -> 1,263 | D48: =SUM(D49) -> 0
A49: 50803 | B49: 资本金注入(一) | C49: 560 | D49: 0
A50: 50804 | B50: 资本金注入(二)
A51: 50805 | B51: 政府投资基金股权投资
A52: 50899 | B52: 其他对企业资本性支出 | C52: 703
A53: 509 | B53: 对个人和家庭的补助 | C53: =SUM(C54:C58) -> 48,433 | D53: =SUM(D54:D58) -> 1,090
A54: 50901 | B54: 社会福利和救助 | C54: 12,643 | D54: 1,073
A55: 50902 | B55: 助学金 | C55: 441 | D55: 0
A56: 50903 | B56: 个人农业生产补贴 | C56: 32,712 | D56: 0
A57: 50905 | B57: 离退休费 | C57: 252 | D57: 14
A58: 50999 | B58: 其他对个人和家庭补助 | C58: 2,385 | D58: 3
A59: 510 | B59: 对社会保障基金补助 | C59: =SUM(C60:C62) -> 0
A60: 51002 | B60: 对社会保险基金补助
A61: 51003 | B61: 补充全国社会保障基金 | D61: 0
A62: 51004 | B62: 对机关事业单位职业年金的补助 | D62: 0
A63: 511 | B63: 债务利息及费用支出 | C63: =SUM(C64:C67) -> 1,943
A64: 51101 | B64: 国内债务付息 | C64: 1,564
A65: 51102 | B65: 国外债务付息 | C65: 371
A66: 51103 | B66: 国内债务发行费用 | C66: 8
A67: 51104 | B67: 国外债务发行费用 | C67: 0
A68: 599 | B68: 其他支出 | C68: =SUM(C69:C73) -> 3 | D68: =SUM(D69:D73) -> 0
A69: 59907 | B69: 国家赔偿费用支出 | C69: 0 | D69: 0
A70: 59908 | B70: 对民间非营利组织和群众性自治组织补贴 | D70: 0
A71: 59909 | B71: 经常性赠与 | C71: 0 | D71: 0
A72: 59910 | B72: 资本性赠与 | C72: 0 | D72: 0
A73: 59999 | B73: 其他支出 | C73: 3 | D73: 0

Sheet 2024年一般公共预算平衡表
A1: 表4
A2: 2024年一般公共预算收支平衡表
A3: 单位：万元
A4: 项目 | B4: 上年决算数 | C4: 决算（执行）数 | D4: 同比增长 | E4: 项目 | F4: 上年决算数 | G4: 决算（执行）数 | H4: 同比增长
A5: 一般公共预算收入 | B5: 31,866 | C5: 34,011 | D5: =(C5-B5)/B5 -> 6.73% | E5: 一般公共预算支出 | F5: 186,376 | G5: 191,471 | H5: =(G5-F5)/F5 -> 2.73%
A6: 上级补助收入 | B6: =SUM(B7,B14,B53) -> 169,316 | C6: =SUM(C7,C14,C53) -> 159,984 | D6: =(C6-B6)/B6 -> -5.51% | E6: 补助下级支出 | G6: =SUM(G7,G14,G53) -> 0
A7: 返还性收入 | B7: =SUM(B8:B13) -> 1,207 | C7: =SUM(C8:C13) -> 1,207 | D7: =(C7-B7)/B7 -> 0.00% | E7: 返还性支出 | G7: =SUM(G8:G13) -> 0
A8: 所得税基数返还收入 | B8: 247 | C8: 247 | D8: =(C8-B8)/B8 -> 0.00% | E8: 所得税基数返还支出
A9: 成品油税费改革税收返还收入 | B9: 10 | C9: 10 | D9: 0.00% | E9: 成品油税费改革税收返还支出
A10: 增值税税收返还收入 | B10: 333 | C10: 333 | D10: 0.00% | E10: 增值税税收返还支出
A11: 消费税税收返还收入 | B11: 0 | E11: 消费税税收返还支出
A12: 增值税“五五分享”税收返还收入 | B12: 617 | C12: 617 | D12: 0.00% | E12: 增值税“五五分享”税收返还支出
A13: 其他返还性收入 | E13: 其他返还性支出
A14: 一般性转移支付收入 | B14: =SUM(B15:B52) -> 151,991 | C14: =SUM(C15:C52) -> 143,312 | D14: -5.71% | E14: 一般性转移支付支出 | G14: =SUM(G15:G52) -> 0
A15: 体制补助收入 | B15: 0 | E15: 体制补助支出
A16: 均衡性转移支付收入 | B16: 19,155 | C16: 20,045 | D16: 4.65% | E16: 均衡性转移支付支出
A17: 县级基本财力保障机制奖补资金收入 | B17: 8,225 | C17: 8,226 | D17: 0.01% | E17: 县级基本财力保障机制奖补资金支出
A18: 结算补助收入 | B18: 10,591 | C18: 3,758 | D18: -64.52% | E18: 结算补助支出
A19: 资源枯竭型城市转移支付补助收入 | B19: 0 | E19: 资源枯竭型城市转移支付补助支出
A20: 企业事业单位划转补助收入 | B20: 587 | C20: 587 | D20: 0.00% | E20: 企业事业单位划转补助支出
A21: 产粮(油)大县奖励资金收入 | B21: 0 | E21: 产粮(油)大县奖励资金支出
A22: 重点生态功能区转移支付收入 | B22: 13,811 | C22: 15,059 | D22: 9.04% | E22: 重点生态功能区转移支付支出
A23: 固定数额补助收入 | B23: 13,437 | C23: 12,980 | D23: -3.40% | E23: 固定数额补助支出
A24: 革命老区转移支付收入 | B24: 0 | E24: 革命老区转移支付支出
A25: 民族地区转移支付收入 | B25: 18,765 | C25: 20,321 | D25: 8.29% | E25: 民族地区转移支付支出
A26: 边境地区转移支付收入 | B26: 0 | E26: 边境地区转移支付支出
A27: 欠发达地区转移支付收入 | B27: 6,816 | C27: 6,906 | D27: 1.32% | E27: 欠发达地区转移支付支出
A28: 一般公共服务共同财政事权转移支付收入 | B28: 10 | C28: 10 | D28: 0.00% | E28: 一般公共服务共同财政事权转移支付支出
A29: 外交共同财政事权转移支付收入 | B29: 0 | E29: 外交共同财政事权转移支付支出
A30: 国防共同财政事权转移支付收入 | B30: 0 | E30: 国防共同财政事权转移支付支出
A31: 公共安全共同财政事权转移支付收入 | B31: 453 | C31: 465 | D31: 2.65% | E31: 公共安全共同财政事权转移支付支出
A32: 教育共同财政事权转移支付收入 | B32: 1,493 | C32: 3,477 | D32: 132.89% | E32: 教育共同财政事权转移支付支出
A33: 科学技术共同财政事权转移支付收入 | B33: 0 | C33: 170 | E33: 科学技术共同财政事权转移支付支出
A34: 文化旅游体育与传媒共同财政事权转移支付收入 | B34: 1,001 | C34: 1,199 | D34: 19.78% | E34: 文化旅游体育与传媒共同财政事权转移支付支出
A35: 社会保障和就业共同财政事权转移支付收入 | B35: 6,527 | C35: 4,344 | D35: -33.45% | E35: 社会保障和就业共同财政事权转移支付支出
A36: 医疗卫生共同财政事权转移支付收入 | B36: 1,070 | C36: 1,042 | D36: -2.62% | E36: 医疗卫生共同财政事权转移支付支出
A37: 节能环保共同财政事权转移支付收入 | B37: 486 | C37: 3,216 | D37: 561.73% | E37: 节能环保共同财政事权转移支付支出
A38: 城乡社区共同财政事权转移支付收入 | B38: 0 | E38: 城乡社区共同财政事权转移支付支出
A39: 农林水共同财政事权转移支付收入 | B39: 45,815 | C39: 36,340 | D39: =(C39-B39)/B39 -> -20.68% | E39: 农林水共同财政事权转移支付支出
A40: 交通运输共同财政事权转移支付收入 | B40: 1,619 | C40: 4,341 | D40: 168.13% | E40: 交通运输共同财政事权转移支付支出
A41: 资源勘探工业信息等共同财政事权转移支付收入 | B41: 60 | C41: 12 | D41: -80.00% | E41: 资源勘探工业信息等共同财政事权转移支付支出
A42: 商业服务业等共同财政事权转移支付收入 | B42: 0 | E42: 商业服务业等共同财政事权转移支付支出
A43: 金融共同财政事权转移支付收入 | B43: 0 | E43: 金融共同财政事权转移支付支出
A44: 自然资源海洋气象等共同财政事权转移支付收入 | B44: 0 | E44: 自然资源海洋气象等共同财政事权转移支付支出
A45: 住房保障共同财政事权转移支付收入 | B45: 88 | C45: 90 | D45: 2.27% | E45: 住房保障共同财政事权转移支付支出
A46: 粮油物资储备共同财政事权转移支付收入 | B46: 0 | E46: 粮油物资储备共同财政事权转移支付支出
A47: 灾害防治及应急管理共同财政事权转移支付收入 | B47: 527 | C47: 463 | D47: -12.14% | E47: 灾害防治及应急管理共同财政事权转移支付支出
A48: 其他共同财政事权转移支付收入 | B48: 0 | E48: 其他共同财政事权转移支付支出
A49: 增值税留抵退税转移支付收入 | B49: 1,372 | C49: 0 | D49: -100.00% | E49: 增值税留抵退税转移支付支出
A50: 其他退税减税降费转移支付收入 | B50: 3 | C50: 0 | D50: -100.00% | E50: 其他退税减税降费转移支付支出
A51: 补充县区财力转移支付收入 | E51: 补充县区财力转移支付支出
A52: 其他一般性转移支付收入 | B52: 80 | C52: 261 | D52: 226.25% | E52: 其他一般性转移支付支出
A53: 专项转移支付收入 | B53: =SUM(B54:B74) -> 16,118 | C53: =SUM(C54:C74) -> 15,465 | D53: -4.05% | E53: 专项转移支付支出 | G53: =SUM(G54:G74) -> 0
A54: 一般公共服务 | B54: 413 | C54: 512 | D54: 23.97% | E54: 一般公共服务
A55: 外交 | B55: 0 | E55: 外交
A56: 国防 | B56: 0 | E56: 国防
A57: 公共安全 | B57: 2 | C57: 1 | D57: -50.00% | E57: 公共安全
A58: 教育 | B58: 19 | C58: 1 | D58: -94.74% | E58: 教育
A59: 科学技术 | B59: 36 | C59: 0 | D59: -100.00% | E59: 科学技术
A60: 文化旅游体育与传媒 | B60: 21 | C60: 100 | D60: 376.19% | E60: 文化旅游体育与传媒
A61: 社会保障和就业 | B61: 186 | C61: 20 | D61: -89.25% | E61: 社会保障和就业
A62: 卫生健康 | B62: 679 | C62: 235 | D62: -65.39% | E62: 卫生健康
A63: 节能环保 | B63: 2,471 | C63: 6,594 | D63: 166.86% | E63: 节能环保
A64: 城乡社区 | C64: 60 | E64: 城乡社区
A65: 农林水 | B65: 7,498 | C65: 4,197 | D65: -44.03% | E65: 农林水
A66: 交通运输 | C66: 120 | E66: 交通运输
A67: 资源勘探工业信息等 | B67: 3,682 | C67: 1,276 | D67: -65.34% | E67: 资源勘探工业信息等
A68: 商业服务业等 | B68: 10 | C68: 90 | D68: 800.00% | E68: 商业服务业等
A69: 金融 | B69: 0 | E69: 金融
A70: 自然资源海洋气象等 | B70: 149 | C70: 1,161 | D70: 679.19% | E70: 自然资源海洋气象等
A71: 住房保障 | B71: 0 | E71: 住房保障
A72: 粮油物资储备 | E72: 粮油物资储备
A73: 灾害防治及应急管理 | B73: 952 | C73: 1,097 | D73: =(C73-B73)/B73 -> 15.23% | E73: 灾害防治及应急管理
A74: 其他收入 | C74: 1 | E74: 其他支出
A75: 下级上解收入 | B75: =SUM(B76:B77) -> 0 | C75: 0 | E75: 上解上级支出 | F75: 7,947 | G75: 7,947 | H75: =(G75-F75)/F75 -> 0.00%
A76: 体制上解收入 | B76: 0 | C76: 0 | E76: 体制上解支出
A77: 专项上解收入 | B77: 0 | C77: 0 | E77: 专项上解支出 | F77: 7,947 | G77: 7,947 | H77: =(G77-F77)/F77 -> 0.00%
A78: 待偿债再融资一般债券上年结余 | B78: 0 | C78: 0
A79: 上年结余收入 | B79: 19,759 | C79: 27,771 | D79: =(C79-B79)/B79 -> 40.55%
A80: 调入资金 | B80: =SUM(B81:B83) -> 32 | C80: =SUM(C81:C83) -> 0 | D80: =(C80-B80)/B80 -> -100.00% | E80: 调出资金 | F80: 18 | G80: 1,325 | H80: =(G80-F80)/F80 -> 7261.11%
A81: 从政府性基金预算调入 | B81: 32 | D81: =(C81-B81)/B81 -> -100.00%
A82: 从国有资本经营预算调入 | B82: 0 | C82: 0
A83: 从其他资金调入 | B83: 0 | C83: 0
A84: 债务收入 | B84: =B85 -> 0 | C84: =C85 -> 0 | E84: 债务还本支出 | F84: 3,515 | G84: =G85 -> 6,000 | H84: =(G84-F84)/F84 -> 70.70%
A85: 地方政府债务收入 | B85: =B86 -> 0 | C85: =C86 -> 0 | E85: 地方政府一般债务还本支出 | F85: 3,515 | G85: =SUM(G86:G89) -> 6,000 | H85: =(G85-F85)/F85 -> 70.70%
A86: 一般债务收入 | B86: =SUM(B87:B90) -> 0 | C86: =SUM(C87:C90) -> 0 | E86: 地方政府一般债券还本支出 | F86: 3,515 | G86: 6,000 | H86: =(G86-F86)/F86 -> 70.70%
A87: 地方政府一般债券收入 | B87: 0 | C87: 0 | E87: 地方政府向外国政府借款还本支出
A88: 地方政府向外国政府借款收入 | B88: 0 | C88: 0 | E88: 地方政府向国际组织借款还本支出
A89: 地方政府向国际组织借款收入 | B89: 0 | C89: 0 | E89: 地方政府其他一般债务还本支出
A90: 地方政府其他一般债务收入 | B90: 0 | C90: 0
A91: 债务转贷收入 | B91: =B92 -> 9,656 | C91: =C92 -> 12,227 | D91: =(C91-B91)/B91 -> 26.63% | E91: 债务转贷支出 | F91: 0 | G91: =SUM(G92:G95) -> 0
A92: 地方政府一般债务转贷收入 | B92: =SUM(B93:B96) -> 9,656 | C92: =SUM(C93:C96) -> 12,227 | D92: =(C92-B92)/B92 -> 26.63% | E92: 地方政府一般债券转贷支出
A93: 地方政府一般债券转贷收入 | B93: 9,656 | C93: 12,227 | D93: =(C93-B93)/B93 -> 26.63% | E93: 地方政府向外国政府借款转贷支出
A94: 地方政府向外国政府借款转贷收入 | B94: 0 | C94: 0 | E94: 地方政府向国际组织借款转贷支出
A95: 地方政府向国际组织借款转贷收入 | B95: 0 | C95: 0 | E95: 地方政府其他一般债务转贷支出
A96: 地方政府其他一般债务转贷收入 | B96: 0 | C96: 0
A97: 国债转贷收入 | B97: 0 | C97: 0 | E97: 补充预算周转金
A98: 国债转贷资金上年结余 | B98: 0 | C98: 0 | E98: 拨付国债转贷资金数
A99: 国债转贷转补助数 | B99: 0 | C99: 0 | E99: 国债转贷资金结余
A100: 动用预算稳定调节基金 | B100: 2,599 | C100: 7,437 | D100: =(C100-B100)/B100 -> 186.15% | E100: 安排预算稳定调节基金 | F100: 7,601 | G100: 74 | H100: =(G100-F100)/F100 -> -99.03%
A101: 区域间转移性收入 | B101: =SUM(B102,B106,B110,B114) -> 0 | C101: =SUM(C102,C106,C110,C114) -> 0 | E101: 区域间转移性支出 | G101: =SUM(G102,G106,G110,G114) -> 0
A102: 接受其他地区援助收入 | B102: =SUM(B103:B105) -> 0 | C102: =SUM(C103:C105) -> 0 | E102: 援助其他地区支出 | G102: =SUM(G103:G105) -> 0
A103: 接受其他省(自治区、直辖市、计划单列市)援助收入 | B103: 0 | C103: 0 | E103: 援助其他省(自治区、直辖市、计划单列市)支出
A104: 接受省内其他地市(区)援助收入 | B104: 0 | C104: 0 | E104: 援助省内其他地市(区)支出
A105: 接受市内其他县市(区)援助收入 | B105: 0 | C105: 0 | E105: 援助市内其他县市(区)支出
A106: 生态保护补偿转移性收入 | B106: =SUM(B107:B109) -> 0 | C106: =SUM(C107:C109) -> 0 | E106: 生态保护补偿转移性支出 | G106: =SUM(G107:G109) -> 0
A107: 其他省(自治区、直辖市、计划单列市)横向生态保护补偿转移性收入 | B107: 0 | C107: 0 | E107: 其他省(自治区、直辖市、计划单列市)横向生态保护补偿转移性支出
A108: 省内其他地市(区)横向生态保护补偿转移性收入 | B108: 0 | C108: 0 | E108: 省内其他地市(区)横向生态保护补偿转移性支出
A109: 市内其他县市(区)横向生态保护补偿转移性收入 | B109: 0 | C109: 0 | E109: 市内其他县市(区)横向生态保护补偿转移性支出
A110: 土地指标调剂转移性收入 | B110: =SUM(B111:B113) -> 0 | C110: =SUM(C111:C113) -> 0 | E110: 土地指标调剂转移性支出 | G110: =SUM(G111:G113) -> 0
A111: 其他省(自治区、直辖市、计划单列市)横向土地指标调剂转移性收入 | B111: 0 | C111: 0 | E111: 其他省(自治区、直辖市、计划单列市)横向土地指标调剂转移性支出
A112: 省内其他地市(区)横向土地指标调剂转移性收入 | B112: 0 | C112: 0 | E112: 省内其他地市(区)横向土地指标调剂转移性支出
A113: 市内其他县市(区)横向土地指标调剂转移性收入 | B113: 0 | C113: 0 | E113: 市内其他县市(区)横向土地指标调剂转移性支出
A114: 其他转移性收入 | B114: =SUM(B115:B117) -> 0 | C114: =SUM(C115:C117) -> 0 | E114: 其他转移性支出 | G114: =SUM(G115:G117) -> 0
A115: 其他省(自治区、直辖市、计划单列市)其他转移性收入 | B115: 0 | C115: 0 | E115: 其他省(自治区、直辖市、计划单列市)其他转移性支出
A116: 省内其他地市(区)其他转移性收入 | B116: 0 | C116: 0 | E116: 省内其他地市(区)其他转移性支出
A117: 市内其他县市(区)其他转移性收入 | B117: 0 | C117: 0 | E117: 市内其他县市(区)其他转移性支出
A118: 省补助计划单列市收入 | B118: 0 | C118: 0 | E118: 计划单列市上解省支出
A119: 计划单列市上解省收入 | B119: 0 | C119: 0 | E119: 省补助计划单列市支出
E120: 待偿债再融资一般债券结余
E121: 年终结余 | F121: 27,771 | G121: =C124-G5-G6-G75-G80-G84-G91-G97-G98-G99-G100-G101-G118-G119-G120 -> 34,613 | H121: =(G121-F121)/F121 -> 24.64%
E122: 减:结转下年的支出 | F122: 27,771 | G122: 34,613 | H122: =(G122-F122)/F122 -> 24.64%
E123: 净结余 | F123: =F121-F122 -> 0 | G123: =G121-G122 -> 0
A124: 收 入 总 计 | B124: =SUM(B5:B6,B75,B78:B80,B84,B91,B97:B101,B118:B119) -> 233,228 | C124: =SUM(C5:C6,C75,C78:C80,C84,C91,C97:C101,C118:C119) -> 241,430 | D124: =(C124-B124)/B124 -> 3.52% | E124: 支 出 总 计 | F124: =SUM(F5:F6,F75,F80,F84,F91,F97:F101,F118:F121) -> 233,228 | G124: =SUM(G5:G6,G75,G80,G84,G91,G97:G101,G118:G121) -> 241,430 | H124: =(G124-F124)/F124 -> 3.52%

Sheet 2024年政府一般债务限额和余额情况表
A1: 表5
A2: 2024年政府一般债务限额和余额情况表
A3: 单位:万元
A4: 项目 | B4: 合计 | C4: 一般债务 | H4: 专项债务
C5: 小计 | D5: 一般债券 | E5: 向外国政府借款 | F5: 向国际组织借款 | G5: 其他一般债务 | H5: 小计 | I5: 专项债券 | J5: 其他专项债务
A6: 上年末地方政府债务余额 | B6: 111,010 | C6: 49,410 | D6: 49,250 | E6: 0 | F6: 160 | G6: 0 | H6: 61,600 | I6: 61,600
A7: 本年地方政府债务余额限额(预算数) | B7: =C7+H7 -> 165,286 | C7: 61486 | D7: 61486 | H7: 103800 | I7: 103,800
A8: 本年地方政府债务(转贷)收入 | B8: =C8+H8 -> 49,627 | C8: 7,427 | D8: 12,227 | E8: 0 | F8: 0 | H8: 42,200 | I8: 42,200
A9: 本年地方政府债务还本支出 | B9: 6,000 | C9: 6,000 | D9: 6,000 | E9: 0 | F9: 126 | G9: 0 | H9: =SUM(I9:J9) -> 0 | I9: 0
A10: 本年采用其他方式化解的债务本金 | B10: 0 | C10: =SUM(D10:G10) -> 0 | D10: 0 | E10: 0 | F10: 0 | G10: 0 | H10: =SUM(I10:J10) -> 0 | I10: 0
A11: 年末地方政府债务余额 | B11: 159,311 | C11: 55,511 | D11: =D6+D8-D9-D10 -> 55,477 | E11: 0 | F11: 34 | G11: 0 | H11: 103,800 | I11: =I8+I6-I9-I10 -> 103,800 | J11: =J6-J9-J10 -> 0

Sheet 2024年一般公共预算“三公”经费会议费培训费支出安排汇总表
A1: 表6
A2: 2024年一般公共预算“三公”经费、会议费、培训费支出情况表
A3: 单位：万元
A4: 项 目 | B4: 2023年决算数 | C4: 2024年决算 （执行）数 | D4: 较上年决算数增（减）幅%
A5: 一、“三公”经费支出 | B5: =B6+B7+B10 -> 689.8 | C5: =C6+C7+C10 -> 677.28 | D5: =(C5-B5)/B5 -> -1.82%
A6: 1．因公出国（境）费
A7: 2．公务用车购置及运行维护费 | B7: =B8+B9 -> 559.06 | C7: =C8+C9 -> 540.17 | D7: =(C7-B7)/B7 -> -3.38%
A8: （1）公务用车购置费 | B8: 99.22 | C8: 98.92 | D8: -0.30%
A9: （2）公务用车运行维护费 | B9: 459.84 | C9: 441.25 | D9: -4.04%
A10: 3．公务接待费 | B10: 130.74 | C10: 137.11 | D10: 4.87%
A11: 二、会议费 | B11: 85.13 | C11: 61.19 | D11: -28.12%
A12: 三、培训费 | B12: 369.13 | C12: 280.42 | D12: -24.03%

Sheet 2024年基金平衡表
A1: 表7
A2: 2024年政府性基金预算收支平衡表
A3: 单位：万元
A4: 项目 | B4: 上年决算数 | C4: 决算（执行）数 | D4: 同比增长 | E4: 项目 | F4: 上年决算数 | G4: 决算（执行）数 | H4: 同比增长
A5: 政府性基金预算收入 | B5: 2,236 | C5: 1,830 | D5: =(C5-B5)/B5 -> -18.16% | E5: 政府性基金预算支出 | F5: 25,338 | G5: 8,330 | H5: =(G5-F5)/F5 -> -67.12%
A6: 政府性基金预算上级补助收入 | B6: 414 | C6: 514 | D6: =(C6-B6)/B6 -> 24.15% | E6: 政府性基金预算补助下级支出 | G6: =G7 -> 0
A7: 政府性基金转移支付收入 | E7: 政府性基金转移支付支出 | G7: =SUM(G8:G16) -> 0
A8: 科学技术 | E8: 科学技术 | G8: ='[6]L10'!P7 -> 0
A9: 文化旅游体育与传媒 | E9: 文化旅游体育与传媒 | G9: ='[6]L10'!P8+'[6]L10'!P9 -> 0
A10: 社会保障和就业 | B10: 23 | D10: =(C10-B10)/B10 -> -100.00% | E10: 社会保障和就业
A11: 节能环保 | E11: 节能环保 | G11: ='[6]L10'!P12+'[6]L10'!P13 -> 0
A12: 城乡社区 | B12: 20 | E12: 城乡社区 | G12: ='[6]L10'!P14+'[6]L10'!P15+'[6]L10'!P16+'[6]L10'!P17+'[6]L10'!P18 -> 0
A13: 农林水 | C13: 24 | E13: 农林水 | G13: ='[6]L10'!P19+'[6]L10'!P20+'[6]L10'!P21 -> 0
A14: 交通运输 | C14: ='[6]L10'!D22+'[6]L10'!D23+'[6]L10'!D24+'[6]L10'!D25+'[6]L10'!D26 -> 0 | E14: 交通运输 | G14: ='[6]L10'!P22+'[6]L10'!P23+'[6]L10'!P24+'[6]L10'!P25+'[6]L10'!P26 -> 0
A15: 资源勘探工业信息等 | C15: ='[6]L10'!D27 -> 0 | E15: 资源勘探工业信息等 | G15: ='[6]L10'!P27 -> 0
A16: 其他收入 | B16: 371 | C16: 490 | D16: =(C16-B16)/B16 -> 32.08% | E16: 其他支出 | G16: ='[6]L10'!P30+'[6]L10'!P31+'[6]L10'!P32 -> 0
A17: 政府性基金预算下级上解收入 | C17: 0 | E17: 政府性基金预算上解上级支出 | F17: 3 | H17: =(G17-F17)/F17 -> -100.00%
A18: 待偿债再融资专项债券上年结余 | C18: 0
A19: 政府性基金预算上年结余收入 | B19: 381 | C19: 276 | D19: =(C19-B19)/B19 -> -27.56%
A20: 政府性基金预算调入资金 | B20: =B22 -> 18 | C20: =C21+C22+C23+C24 -> 1,325 | E20: 政府性基金预算调出资金 | F20: 32
A21: 中央单位特殊上缴利润专项收入
A22: 其他调入政府性基金预算资金 | B22: =SUM(B23:B24) -> 18
A23: 一般公共预算调入 | B23: 18 | C23: 1,325
A24: 其他调入资金
A25: 债务收入 | B25: =B26 -> 0 | E25: 债务还本支出 | G25: =G26 -> 0
A26: 地方政府债务收入 | B26: 0 | E26: 地方政府专项债务还本支出
A27: 专项债务收入 | B27: 0 | E27: 抗疫特别国债还本支出
A28: 债务转贷收入 | B28: 22,600 | C28: =C29+C30 -> 4,676 | D28: =(C28-B28)/B28 -> -79.31% | E28: 债务转贷支出
A29: 地方政府专项债务转贷收入 | B29: 22,600 | C29: 2,200 | D29: =(C29-B29)/B29 -> -90.27%
A30: 超长期特别国债收入 | C30: 2,476
A31: 政府性基金预算省补助计划单列市收入 | B31: 0 | E31: 政府性基金预算省补助计划单列市支出
A32: 政府性基金预算计划单列市上解省收入 | B32: 0 | E32: 政府性基金预算计划单列市上解省支出
E33: 待偿债再融资专项债券结余 | F33: 0 | G33: ='[6]L10'!Y6 -> 0
E34: 政府性基金预算年终结余 | F34: =B35-F5-F6-F17-F20-F25-F28-F31-F32-F33 -> 276 | G34: 291 | H34: =(G34-F34)/F34 -> 5.43%
A35: 收 入 总 计 | B35: =SUM(B5,B6,B17:B20,B25,B28,B31,B32) -> 25,649 | C35: =SUM(C5,C6,C17:C20,C25,C28,C31,C32) -> 8,621 | D35: =(C35-B35)/B35 -> -66.39% | E35: 支 出 总 计 | F35: =SUM(F5,F6,F17,F20,F25,F28,F31:F34) -> 25,649 | G35: =SUM(G5,G6,G17,G20,G25,G28,G31:G34) -> 8,621 | H35: =(G35-F35)/F35 -> -66.39%

Sheet 2024年国有资本平衡表
A1: 表8
A2: 2024年国有资本经营预算收支平衡表
A3: 单位：万元
A4: 项目 | B4: 上年决算数 | C4: 决算 （执行）数 | D4: 同比增长 | E4: 项目 | F4: 上年决算数 | G4: 决算 （执行）数 | H4: 同比增长
A5: 国有资本经营预算收入 | B5: 167 | C5: 15 | D5: =(C5-B5)/B5 -> -91.02% | E5: 国有资本经营预算支出 | F5: 1 | G5: 168 | H5: =(G5-F5)/F5 -> 16700%
A6: 国有资本经营预算上级补助收入 | B6: 1 | C6: 1 | D6: =(C6-B6)/B6 -> 0.00% | E6: 国有资本经营预算补助下级支出
A7: 国有资本经营预算下级上解收入 | C7: 0 | E7: 国有资本经营预算上解上级支出
A8: 国有资本经营预算上年结余收入 | C8: 167 | E8: 国有资本经营预算调出资金
A9: 国有资本经营预算省补助计划单列市收入 | C9: 0 | E9: 国有资本经营预算省补助计划单列市支出
A10: 国有资本经营预算计划单列市上解省收入 | C10: 0 | E10: 国有资本经营预算计划单列市上解省支出
C11: 0 | E11: 国有资本经营预算年终结余 | F11: 167 | G11: =C12-SUM(G5:G10) -> 15 | H11: =(G11-F11)/F11 -> -91%
A12: 收 入 总 计 | B12: 168 | C12: =SUM(C5:C10) -> 183 | D12: =(C12-B12)/B12 -> 8.93% | E12: 支 出 总 计 | F12: 168 | G12: =SUM(G5:G11) -> 183 | H12: =(G12-F12)/F12 -> 9%

Sheet 2024年社会保险基决算表
A1: 表9
A2: 2024年社会保险基金预算收支及结余情况表
A3: 单位：万元
A4: 项 目 | B4: 合计 | C4: 企业职工基本养老保险基金 | D4: 城乡居民基本养老保险基金 | E4: 机关事业单位基本养老保险基金 | F4: 职工基本医疗保险(含生育保险)基金 | G4: 城乡居民基本医疗保险基金 | H4: 工伤保险基金 | I4: 失业保险基金
A5: 一、收入 | B5: =SUM(C5:I5) -> 14,337 | C5: 0 | D5: 3,037 | E5: 11,300 | F5: 0 | G5: 0 | H5: 0
A6: 其中:社会保险费收入 | B6: 9,214 | C6: 0 | D6: 1,088 | E6: 8,126 | F6: 0 | G6: 0 | H6: 0
A7: 财政补贴收入 | B7: 2,921 | C7: 0 | D7: 1,021 | E7: 1,900 | F7: 0 | G7: 0 | H7: 0
A8: 利息收入 | B8: 40 | C8: 0 | D8: 17 | E8: 23 | F8: 0 | G8: 0 | H8: 0
A9: 委托投资收益 | B9: 0 | C9: 0 | F9: 0 | G9: 0 | H9: 0
A10: 转移收入 | B10: 34 | C10: 0 | E10: 34 | F10: 0 | G10: 0 | H10: 0
A11: 其他收入 | B11: 1 | C11: 0 | D11: 1 | F11: 0 | G11: 0 | H11: 0
A12: 全国统筹调剂资金收入 | B12: 0 | C12: 0 | F12: 0 | G12: 0 | H12: 0
A13: 二、支出 | B13: 14,709 | C13: 0 | D13: 2,883 | E13: 11,826 | F13: 0 | G13: 0 | H13: 0
A14: 其中:社会保险待遇支出 | B14: 13,949 | C14: 0 | D14: 2,123 | E14: 11,826 | F14: 0 | G14: 0 | H14: 0
A15: 转移支出 | B15: 0 | C15: 0 | F15: 0 | G15: 0 | H15: 0
A16: 其他支出 | B16: 0 | C16: 0 | F16: 0 | G16: 0 | H16: 0
A17: 全国统筹调剂资金支出 | B17: 0 | C17: 0 | F17: 0 | G17: 0 | H17: 0
A18: 三、本年收支结余 | B18: -372 | C18: =SUM(C5)-SUM(C13) -> 0 | D18: 154 | E18: -526 | F18: 0 | G18: 0 | H18: 0 | I18: 0
A19: 四、年末滚存结余 | B19: 3,051 | C19: 0 | D19: 1,490 | E19: 1,561 | F19: 0 | G19: 0 | H19: 0

Sheet 2025年预算封面
A2: 第二部分：2025年财政预算（草案）

Sheet 2025年大口径表
A1: 表10
A2: 2025年大口径财政收入预算表
J3: 单位：万元
A4: 预 算 科 目 | B4: 大口径收入 | E4: 中 央 收 入 | F4: 省级收入 | G4: 市县区收入
B5: 合计 | C5: 税务系统 | D5: 财政系统 | G5: 合计 | H5: 市级 收入 | I5: 县 区 收 入
I6: 小计 | J6: 县区级 | K6: 乡镇级
A7: 大口径收入总计 | B7: =B8+B47+B57 -> 64059 | C7: 50475 | D7: 14185 | E7: 18181 | F7: 9074 | G7: 37195 | H7: 180 | I7: 37015 | J7: 37015 | K7: 0
A8: 一般公共预算收入合计 | B8: =B9+B27 -> 63438 | C8: 49874 | D8: 13564 | E8: 18181 | F8: 9048 | G8: 36590 | H8: 180 | I8: 36410 | J8: 36410 | K8: 0
A9: 一、税收收入 | B9: =SUM(B10:B26) -> 43578 | C9: 43578 | D9: 0 | E9: 18001 | F9: 8520 | G9: 18340 | H9: 0 | I9: 18340 | J9: 18340 | K9: 0
A10: 消费税 | B10: =SUM(C10:D10) -> 0 | G10: =SUM(H10:I10) -> 0 | I10: =SUM(J10:K10) -> 0
A11: 增值税 | B11: 28238 | C11: =E11+F11+G11 -> 28238 | E11: 14119 | F11: 4236 | G11: 9883 | I11: 9883 | J11: 9883
A12: 改征增值税 | B12: 0 | C12: 0 | G12: 0 | I12: 0
A13: 营业税 | B13: 0 | C13: 0 | G13: 0 | I13: 0
A14: 企业所得税 | B14: 4310 | C14: 4310 | E14: 3348 | F14: 1116 | G14: 1116 | I14: 1116 | J14: 1116
A15: 个人所得税 | B15: 890 | C15: 890 | E15: 534 | F15: 178 | G15: 191 | I15: 191 | J15: 191
A16: 资源税 | B16: 6537 | C16: =E16+F16+G16 -> 6537 | F16: 2980 | G16: 3557 | I16: 3557 | J16: 3557
A17: 城市维护建设税 | B17: 407 | C17: 407 | G17: 407 | I17: 407 | J17: 407
A18: 房产税 | B18: 500 | C18: 500 | G18: 500 | I18: 500 | J18: 500
A19: 印花税 | B19: 425 | C19: 425 | G19: 425 | I19: 425 | J19: 425
A20: 城镇土地使用税 | B20: 625 | C20: 625 | G20: 625 | I20: 625 | J20: 625
A21: 土地增值税 | B21: 8 | C21: 8 | G21: 8 | I21: 8 | J21: 8
A22: 车船税 | B22: 244 | C22: 244 | G22: 244 | I22: 244 | J22: 244
A23: 耕地占用税 | B23: 1231 | C23: 1231 | G23: 1231 | I23: 1231 | J23: 1231
A24: 契税 | B24: 123 | C24: 123 | G24: 123 | I24: 123 | J24: 123
A25: 环境保护税 | B25: 40 | C25: 40 | F25: 10 | G25: 30 | I25: 30 | J25: 30
A26: 其他税收收入 | B26: 0 | C26: 0 | G26: 0 | I26: 0
A27: 二、非税收入 | B27: =SUM(B28,B39:B41,B43:B46) -> 19860 | C27: 6296 | D27: 13564 | E27: 180 | F27: 528 | G27: 18250 | H27: 180 | I27: 18070 | J27: 18070 | K27: 0
A28: 专项收入 | B28: =SUM(B29:B38) -> 2084 | C28: 2084 | D28: 0 | E28: 0 | F28: 168 | G28: 1916 | H28: 0 | I28: 1916 | J28: 1916 | K28: 0
A29: 排污费收入 | B29: =SUM(C29:D29) -> 0 | C29: =E29+F29+G29 -> 0 | G29: =SUM(H29:I29) -> 0 | I29: =SUM(J29:K29) -> 0
A30: 水资源费收入 | B30: 0 | C30: 0 | G30: 0 | I30: 0
A31: 教育费附加收入 | B31: 735 | C31: 735 | G31: 735 | I31: 735 | J31: 735
A32: 地方教育附加收入 | B32: 529 | C32: 529 | F32: 106 | G32: 423 | I32: 423 | J32: 423
A33: 育林基金收入 | B33: 0 | C33: 0 | G33: 0 | I33: 0
A34: 森林植被恢复费 | B34: 0 | C34: 0 | G34: 0 | I34: 0
A35: 残疾人就业保障金收入 | B35: 620 | C35: 620 | F35: 62 | G35: 558 | I35: 558 | J35: 558
A36: 教育资金收入 | B36: 100 | C36: 100 | G36: 100 | I36: 100 | J36: 100
A37: 农田水利建设资金收入 | B37: 100 | C37: 100 | G37: 100 | I37: 100 | J37: 100
A38: 其他专项收入 | B38: 0 | C38: 0 | G38: 0 | I38: 0
A39: 行政事业性收费收入 | B39: 3388 | C39: 2983 | D39: 405 | E39: 180 | F39: 360 | G39: 2443 | H39: 180 | I39: 2263 | J39: 2263
A40: 罚没收入 | B40: 1519 | C40: 1069 | D40: 450 | G40: 1069 | I40: 1069 | J40: 1069
A41: 国有资本经营收入 | B41: 64 | C41: 64 | G41: 64 | I41: 64 | J41: 64
A42: 其中：国有企业亏损计划补贴 | B42: 0 | C42: 0 | G42: 0 | I42: 0
A43: 国有资源有偿使用收入 | B43: 12662 | D43: 12662 | G43: 12662 | I43: 12662 | J43: 12662
A44: 捐赠收入 | B44: 96 | C44: =E44+F44+G44 -> 54 | D44: 42 | G44: 54 | I44: 54 | J44: 54
A45: 政府住房基金收入 | B45: 45 | C45: 42 | D45: 3 | G45: 42 | I45: 42 | J45: 42
A46: 其他收入 | B46: 2 | C46: 0 | D46: 2 | G46: 0 | I46: 0
A47: 政府性基金收入合计 | B47: =SUM(B48:B56) -> 591 | C47: 601 | D47: 591 | E47: 0 | F47: 26 | G47: 575 | H47: 0 | I47: 575 | J47: 575 | K47: 0
A48: 新型墙体材料专项基金收入 | B48: =SUM(C48:D48) -> 0 | C48: 0 | G48: =SUM(H48:I48) -> 0 | I48: =SUM(J48:K48) -> 0
A49: 城市公用事业附加收入 | B49: 0 | C49: 0 | G49: 0 | I49: 0
A50: 国有土地收益基金收入 | B50: 0 | C50: 0 | G50: 0 | I50: 0
A51: 农业土地开发资金收入 | B51: 0 | C51: 0 | G51: 0 | I51: 0
A52: 国有土地使用权出让收入 | B52: 526 | C52: 0 | D52: 526 | F52: 26 | G52: 500 | I52: 500 | J52: 500
A53: 城市基础设施配套费收入 | B53: 20 | D53: 20 | G53: 30 | I53: 30 | J53: 30
A54: 污水处理费收入 | B54: 45 | D54: 45 | G54: 45 | I54: 45 | J54: 45
A55: 彩票发行销售机构的业务费用 | B55: 0 | C55: =E55+F55+G55 -> 0 | G55: 0 | I55: 0
A56: 其他政府性基金收入 | B56: 0 | C56: 0 | G56: 0 | I56: 0
A57: 国有资本经营收入 | B57: =SUM(B58:B59) -> 30 | C57: 0 | D57: 30 | E57: 0 | F57: 0 | G57: 30 | H57: 0 | I57: 30 | J57: 30 | K57: 0
A58: 利润收入 | B58: =SUM(C58:D58) -> 0 | C58: 0 | G58: =SUM(H58:I58) -> 0 | I58: =SUM(J58:K58) -> 0
A59: 股利、股息收入 | B59: =SUM(C59:D59) -> 30 | D59: 30 | G59: =SUM(H59:I59) -> 30 | I59: =SUM(J59:K59) -> 30 | J59: 30

Sheet 2025年一般公共预算收入
A1: 表11
A2: 2025年一般公共预算收入预算表
G3: 单位：万元
A4: 项目 | C4: 上年预算数 | D4: 上年执行数 | E4: 预算数
A5: 代码 | B5: 名称 | E5: 金额 | F5: 为上年预算数的% | G5: 为上年执行数的%
A6: 101 | B6: 税收收入 | C6: =SUM(C7:C22) -> 14901 | D6: =SUM(D7:D22) -> 17222 | E6: =SUM(E7:E22) -> 18340 | F6: =IFERROR(E6/C6,0) -> 123.08% | G6: =IFERROR(E6/D6,0) -> 106.49%
A7: 10101 | B7: 增值税 | C7: 8785 | D7: 9280 | E7: 9883 | F7: 112.50% | G7: =IFERROR(E7/D7,0) -> 106.50%
A8: 10104 | B8: 企业所得税 | C8: 862 | D8: 1048 | E8: 1116 | F8: 129.47% | G8: 106.49%
A9: 10105 | B9: 企业所得税退税 | C9: 0 | E9: 0 | F9: 0.00% | G9: 0.00%
A10: 10106 | B10: 个人所得税 | C10: 178 | D10: 179 | E10: 191 | F10: 107.30% | G10: 106.70%
A11: 10107 | B11: 资源税 | C11: 2980 | D11: 3340 | E11: 3557 | F11: 119.36% | G11: 106.50%
A12: 10109 | B12: 城市维护建设税 | C12: 432 | D12: 382 | E12: 407 | F12: =IFERROR(E12/C12,0) -> 94.21% | G12: 106.54%
A13: 10110 | B13: 房产税 | C13: 462 | D13: 470 | E13: 500 | F13: 108.23% | G13: 106.38%
A14: 10111 | B14: 印花税 | C14: 229 | D14: 399 | E14: 425 | F14: 185.59% | G14: 106.52%
A15: 10112 | B15: 城镇土地使用税 | C15: 614 | D15: 587 | E15: 625 | F15: 101.79% | G15: 106.47%
A16: 10113 | B16: 土地增值税 | C16: 58 | D16: 8 | E16: 8 | F16: 13.79% | G16: 100.00%
A17: 10114 | B17: 车船税 | C17: 229 | D17: 229 | E17: 244 | F17: 106.55% | G17: 106.55%
A18: 10118 | B18: 耕地占用税 | C18: 2 | D18: 1156 | E18: 1231 | F18: 61550.00% | G18: 106.49%
A19: 10119 | B19: 契税 | C19: 61 | D19: 116 | E19: 123 | F19: 201.64% | G19: 106.03%
A20: 10120 | B20: 烟叶税 | C20: 0 | E20: 0 | F20: 0.00% | G20: 0.00%
A21: 10121 | B21: 环境保护税 | C21: 9 | D21: 28 | E21: 30 | F21: 333.33% | G21: 107.14%
A22: 10199 | B22: 其他税收收入 | C22: 0 | E22: =D22*1.065 -> 0 | F22: 0.00% | G22: 0.00%
A23: 103 | B23: 非税收入 | C23: =SUM(C24:C31) -> 19036 | D23: =SUM(D24:D31) -> 16789 | E23: =SUM(E24:E31) -> 17890 | F23: 93.98% | G23: 106.56%
A24: 10302 | B24: 专项收入 | C24: 1678 | D24: 2558 | E24: 1916 | F24: 114.18% | G24: 74.90%
A25: 10304 | B25: 行政事业性收费收入 | C25: 2349 | D25: 1197 | E25: 2083 | F25: 88.68% | G25: 174.02%
A26: 10305 | B26: 罚没收入 | C26: 1260 | D26: 1004 | E26: 1069 | F26: 84.86% | G26: 106.50%
A27: 10306 | B27: 国有资本经营收入 | C27: 0 | D27: 60 | E27: 64 | F27: 0.00% | G27: 106.50%
A28: 10307 | B28: 国有资源（资产）有偿使用收入 | C28: 13702 | D28: 11880 | E28: 12662 | F28: 92.41% | G28: 106.58%
A29: 10308 | B29: 捐赠收入 | C29: 42 | D29: 51 | E29: 54 | F29: 128.57% | G29: 105.88%
A30: 10309 | B30: 政府住房基金收入 | C30: 3 | D30: 39 | E30: 42 | F30: 1400.00% | G30: 107.69%
A31: 10399 | B31: 其他收入 | C31: 2 | E31: =D31*1.065 -> 0 | F31: 0.00% | G31: 0.00%
C32: 0 | E32: =D32*1.065 -> 0 | F32: 0.00% | G32: 0.00%
A33: 收入总计 | C33: =C6+C23 -> 33937 | D33: =D6+D23 -> 34011 | E33: =E6+E23 -> 36230 | F33: 106.76% | G33: 106.52%

Sheet 2025年一般公共预算支出
A1: 表12
A2: 2025年一般公共预算支出总表
D3: 单位：万元
A4: 预算科目 | B4: 上年预算数 | C4: 本年预算数 | D4: 同比增长
A5: 一、一般公共服务支出 | B5: 22,701 | C5: 22,684 | D5: =(C5-B5)/B5 -> -0.07%
A6: 二、外交支出
A7: 三、国防支出 | B7: 40 | C7: 60 | D7: 50.00%
A8: 四、公共安全支出 | B8: 5,534 | C8: 5,386 | D8: -2.67%
A9: 五、教育支出 | B9: 11,974 | C9: 12,033 | D9: 0.49%
A10: 六、科学技术支出 | B10: 732 | C10: 3,582 | D10: 389.34%
A11: 七、文化旅游体育与传媒支出 | B11: 10,551 | C11: 10,236 | D11: -2.99%
A12: 八、社会保障和就业支出 | B12: 18,206 | C12: 17,625 | D12: -3.19%
A13: 九、卫生健康支出 | B13: 10,938 | C13: 11,029 | D13: 0.83%
A14: 十、节能环保支出 | B14: 10,426 | C14: 8,563 | D14: -17.87%
A15: 十一、城乡社区支出 | B15: 3,311 | C15: 3,652 | D15: 10.30%
A16: 十二、农林水支出 | B16: 57,174 | C16: 59,849 | D16: 4.68%
A17: 十三、交通运输支出 | B17: 5,147 | C17: 5,389 | D17: 4.70%
A18: 十四、资源勘探工业信息等支出 | B18: 3,891 | C18: 3,918 | D18: 0.69%
A19: 十五、商业服务业等支出 | B19: 215 | C19: 223 | D19: 3.72%
A20: 十六、金融支出 | B20: 30 | C20: 0
A21: 十七、援助其他地区支出
A22: 十八、自然资源海洋气象等支出 | B22: 3,105 | C22: 2,685 | D22: =(C22-B22)/B22 -> -13.53%
A23: 十九、住房保障支出 | B23: 3,550 | C23: 3,689 | D23: 3.92%
A24: 二十、粮油物资储备支出 | B24: 120 | C24: 0 | D24: -100.00%
A25: 二十一、灾害防治及应急管理支出 | B25: 2,293 | C25: 2,356 | D25: 2.75%
A26: 二十二、其他支出 | B26: 2,378
A27: 二十三、债务付息支出 | B27: 3,889 | C27: 1,628 | D27: =(C27-B27)/B27 -> -58.14%
A28: 其中:地方政府一般债券付息支出 | B28: 3,889 | C28: 1,628 | D28: -58.14%
A29: 二十四、债务发行费用支出 | B29: 20 | C29: 20 | D29: 0.00%
A31: 本年支出合计 | B31: =SUM(B5:B29)-3889 -> 176225 | C31: =SUM(C5:C27,C29) -> 174,607 | D31: =(C31-B31)/B31 -> -0.92%

Sheet 2025年一般公共预算经济分类支出预算
A1: 表13
A2: 2025年一般公共预算经济分类支出预算表
D3: 单位:万元
A4: 科目编码 | B4: 科目名称 | C4: 一般公共预算经济分类支出 | D4: 一般公共预算经济分类基本支出
B5: 一般公共预算经济分类支出合计 | C5: =SUM(C6,C11,C22,C30,C37,C41,C44,C48,C53,C59,C63,C68) -> 174,607 | D5: =SUM(D6,D11,D22,D30,D37,D41,D44,D48,D53,D59,D68) -> 57,063
A6: 501 | B6: 机关工资福利支出 | C6: =SUM(C7:C10) -> 55,431 | D6: =SUM(D7:D10) -> 32,915
A7: 50101 | B7: 工资奖金津补贴 | C7: 42,353 | D7: 26,842
A8: 50102 | B8: 社会保障缴费 | C8: 8,546 | D8: 3,659
A9: 50103 | B9: 住房公积金 | C9: 4,532 | D9: 2,414
A10: 50199 | B10: 其他工资福利支出
A11: 502 | B11: 机关商品和服务支出 | C11: =SUM(C12:C21) -> 14,376 | D11: =SUM(D12:D21) -> 4,911
A12: 50201 | B12: 办公经费 | C12: 13,133 | D12: 3,668
A13: 50202 | B13: 会议费 | C13: 143 | D13: 143
A14: 50203 | B14: 培训费 | C14: 355 | D14: 355
A15: 50204 | B15: 专用材料购置费 | C15: 9 | D15: 9
A16: 50205 | B16: 委托业务费 | C16: 7 | D16: 7
A17: 50206 | B17: 公务接待费 | C17: 179 | D17: 179
A18: 50207 | B18: 因公出国(境)费用
A19: 50208 | B19: 公务用车运行维护费 | C19: 454 | D19: 454
A20: 50209 | B20: 维修(护)费 | C20: 96 | D20: 96
A21: 50299 | B21: 其他商品和服务支出
A22: 503 | B22: 机关资本性支出(一) | C22: =SUM(C23:C29) -> 27,329 | D22: =SUM(D23:D29) -> 0
A23: 50301 | B23: 房屋建筑物购建 | C23: 8,035
A24: 50302 | B24: 基础设施建设 | C24: 7,866
A25: 50303 | B25: 公务用车购置 | C25: 100
A26: 50305 | B26: 土地征迁补偿和安置支出 | C26: 3,253
A27: 50306 | B27: 设备购置 | C27: 761
A28: 50307 | B28: 大型修缮 | C28: 7,314
A29: 50399 | B29: 其他资本性支出
A30: 504 | B30: 机关资本性支出(二) | C30: =SUM(C31:C36) -> 25,880 | D30: =SUM(D31:D36) -> 0
A31: 50401 | B31: 房屋建筑物购建 | C31: 8,838 | D31: 0
A32: 50402 | B32: 基础设施建设 | C32: 8,191 | D32: 0
A33: 50403 | B33: 公务用车购置 | C33: 0 | D33: 0
A34: 50404 | B34: 设备购置 | C34: 582 | D34: 0
A35: 50405 | B35: 大型修缮 | C35: 8,269 | D35: 0
A36: 50499 | B36: 其他资本性支出 | D36: 0
A37: 505 | B37: 对事业单位经常性补助 | C37: =SUM(C38:C40) -> 18,006 | D37: =SUM(D38:D40) -> 15,946
A38: 50501 | B38: 工资福利支出 | C38: 15,763 | D38: 13,703
A39: 50502 | B39: 商品和服务支出 | C39: 2,243 | D39: 2,243
A40: 50599 | B40: 其他对事业单位补助 | C40: 0 | D40: 0
A41: 506 | B41: 对事业单位资本性补助 | C41: =SUM(C42:C43) -> 19,369 | D41: =SUM(D42:D43) -> 0
A42: 50601 | B42: 资本性支出(一) | C42: 10,321 | D42: 0
A43: 50602 | B43: 资本性支出(二) | C43: 9,048 | D43: 0
A44: 507 | B44: 对企业补助 | C44: =SUM(C45:C47) -> 596 | D44: =SUM(D45:D47) -> 0
A45: 50701 | B45: 费用补贴 | C45: 337 | D45: 0
A46: 50702 | B46: 利息补贴 | C46: 259 | D46: 0
A47: 50799 | B47: 其他对企业补助 | D47: 0
A48: 508 | B48: 对企业资本性支出 | C48: =SUM(C49:C52) -> 0 | D48: =SUM(D49) -> 0
A49: 50803 | B49: 资本金注入(一) | C49: 0 | D49: 0
A50: 50804 | B50: 资本金注入(二) | C50: 0
A51: 50805 | B51: 政府投资基金股权投资 | C51: 0
A52: 50899 | B52: 其他对企业资本性支出 | C52: 0
A53: 509 | B53: 对个人和家庭的补助 | C53: =SUM(C54:C58) -> 10,093 | D53: =SUM(D54:D58) -> 1,862
A54: 50901 | B54: 社会福利和救助 | C54: 1,527 | D54: 1,527
A55: 50902 | B55: 助学金 | C55: 305 | D55: 305
A56: 50903 | B56: 个人农业生产补贴 | C56: 8,231
A57: 50905 | B57: 离退休费 | C57: 30 | D57: 30
A58: 50999 | B58: 其他对个人和家庭补助
A59: 510 | B59: 对社会保障基金补助 | C59: =SUM(C60:C62) -> 1,429 | D59: =SUM(D60:D62) -> 1,429
A60: 51002 | B60: 对社会保险基金补助 | C60: 1,399 | D60: 1,399
A61: 51003 | B61: 补充全国社会保障基金 | C61: 0 | D61: 0
A62: 51004 | B62: 对机关事业单位职业年金的补助 | C62: 30 | D62: 30
A63: 511 | B63: 债务利息及费用支出 | C63: =SUM(C64:C67) -> 2,098
A64: 51101 | B64: 国内债务付息 | C64: 1,628
A65: 51102 | B65: 国外债务付息 | C65: 450
A66: 51103 | B66: 国内债务发行费用 | C66: 20
A67: 51104 | B67: 国外债务发行费用 | C67: 0
A68: 599 | B68: 其他支出 | C68: =SUM(C69:C73) -> 0 | D68: =SUM(D69:D73) -> 0
A69: 59907 | B69: 国家赔偿费用支出 | C69: 0 | D69: 0
A70: 59908 | B70: 对民间非营利组织和群众性自治组织补贴 | C70: 0 | D70: 0
A71: 59909 | B71: 经常性赠与 | C71: 0 | D71: 0
A72: 59910 | B72: 资本性赠与 | C72: 0 | D72: 0
A73: 59999 | B73: 其他支出 | D73: 0

Sheet 2025年一般公共预算平衡表
A1: 表14
A2: 2025年一般公共预算收支平衡表
G3: 单位：万元
A4: 收入 | E4: 支出
A5: 项目 | B5: 上年预算数 | C5: 预算数 | D5: 同比增长 | E5: 项目 | F5: 上年预算数 | G5: 预算数 | H5: 同比增长
A6: 本级收入合计 | B6: 33937 | C6: 36230 | D6: =(C6-B6)/B6 -> 6.76% | E6: 本级支出合计 | F6: 176225 | G6: 174607 | H6: =(G6-F6)/F6 -> -0.92%
A7: 转移性收入 | B7: =B8+B74+B75+B79+B80+B81+B82 -> 150042 | C7: =C8+C74+C75+C79+C80+C81+C82 -> 145889 | D7: -2.77% | E7: 转移性支出 | F7: =F10 -> 7154 | G7: =G10 -> 7154 | H7: 0.00%
A8: 上级补助收入 | B8: =B9+B16+B51 -> 122271 | C8: =C9+C16+C51 -> 111276 | D8: -8.99% | E8: 上解支出 | F8: =F9+F10 -> 7154 | G8: =G9+G10 -> 7154 | H8: 0.00%
A9: 返还性收入 | B9: =SUM(B10:B15) -> 1207 | C9: =SUM(C10:C15) -> 1207 | D9: 0.00% | E9: 体制上解支出
A10: 所得税基数返还收入 | B10: 247 | C10: 247 | D10: 0.00% | E10: 专项上解支出 | F10: 7154 | G10: 7154 | H10: =(G10-F10)/F10 -> 0.00%
A11: 成品油税费改革税收返还收入 | B11: 10 | C11: 10 | D11: 0.00%
A12: 增值税税收返还收入 | B12: 333 | C12: 333 | D12: 0.00%
A13: 消费税税收返还收入
A14: 增值税五五分享税收返还收入 | B14: 617 | C14: 617 | D14: =(C14-B14)/B14 -> 0.00%
A15: 其他返还性收入
A16: 一般性转移支付收入 | B16: =SUM(B17:B50) -> 119621 | C16: =SUM(C17:C50) -> 109822 | D16: -8.19%
A17: 体制补助收入
A18: 均衡性转移支付收入 | B18: 19084 | C18: 19084 | D18: 0.00%
A19: 县级基本财力保障机制奖补资金收入 | B19: 6847 | C19: 8080 | D19: 18.01%
A20: 结算补助收入 | B20: 331 | C20: 331 | D20: 0.00%
A21: 资源枯竭型城市转移支付补助收入
A22: 企业事业单位划转补助收入 | B22: 587 | C22: 587 | D22: =(C22-B22)/B22 -> 0.00%
A23: 成品油税费改革转移支付补助收入
A24: 重点生态功能区转移支付收入 | B24: 11972 | C24: 12513 | D24: 4.52%
A25: 固定数额补助收入 | B25: 12561 | C25: 12561 | D25: 0.00%
A26: 革命老区转移支付收入
A27: 民族地区转移支付收入 | B27: 18745 | C27: 18445 | D27: =(C27-B27)/B27 -> -1.60%
A28: 边境地区转移支付收入
A29: 贫困地区转移支付收入 | B29: 5930 | D29: =(C29-B29)/B29 -> -100.00%
A30: 一般公共服务共同财政事权转移支付收入 | C30: 2
A31: 外交共同财政事权转移支付收入
A32: 国防共同财政事权转移支付收入
A33: 公共安全共同财政事权转移支付收入 | B33: 378 | C33: 409
A34: 教育共同财政事权转移支付收入 | B34: 2763 | D34: =(C34-B34)/B34 -> -100.00%
A35: 科学技术共同财政事权转移支付收入 | C35: 54
A36: 文化旅游体育与传媒共同财政事权转移支付收入 | B36: 903 | C36: 203 | D36: -77.52%
A37: 社会保障和就业共同财政事权转移支付收入 | B37: 4677 | C37: 31 | D37: -99.34%
A38: 卫生健康共同财政事权转移支付收入 | B38: 790 | D38: -100.00%
A39: 节能环保共同财政事权转移支付收入 | C39: 2174
A40: 城乡社区共同财政事权转移支付收入
A41: 农林水共同财政事权转移支付收入 | B41: 33266 | C41: 35173 | D41: =(C41-B41)/B41 -> 5.73%
A42: 交通运输共同财政事权转移支付收入 | B42: 434
A43: 资源勘探信息等共同财政事权转移支付收入
A44: 商业服务业等共同财政事权转移支付收入
A45: 金融共同财政事权转移支付收入
A46: 自然资源海洋气象等共同财政事权转移支付收入
A47: 住房保障共同财政事权转移支付收入 | B47: 76 | C47: 175
A48: 粮油物资储备共同财政事权转移支付收入
A49: 其他共同财政事权转移支付收入
A50: 其他一般性转移支付收入 | B50: 277 | D50: =(C50-B50)/B50 -> -100.00%
A51: 专项转移支付收入 | B51: =SUM(B52:B71) -> 1443 | C51: 247 | D51: -82.88%
A52: 一般公共服务 | B52: 7 | D52: -100.00%
A53: 外交
A54: 国防
A55: 公共安全
A56: 教育
A57: 科学技术
A58: 文化旅游体育与传媒
A59: 社会保障和就业 | B59: 105
A60: 卫生健康 | B60: 96
A61: 节能环保 | B61: 50
A62: 城乡社区 | B62: 60
A63: 农林水 | B63: 1035 | C63: 247 | D63: =(C63-B63)/B63 -> -76.14%
A64: 交通运输
A65: 资源勘探信息等
A66: 商业服务业等 | B66: 90
A67: 金融
A68: 自然资源海洋气象等
A69: 住房保障
A70: 粮油物资储备
A71: 其他收入
A74: 上年结余收入 | B74: 27771 | C74: 34613
A75: 调入资金 | E75: 调出资金
A76: 从政府性基金预算调入 | E76: 年终结余（正数为结余，负数为赤字）
A77: 从国有资本经营预算调入 | E77: 地方政府一般债务还本支出 | F77: 600 | G77: 358
A78: 从其他资金调入 | E78: 地方政府一般债务转贷支出
A79: 地方政府一般债务收入 | E79: 援助其他地区支出
A80: 地方政府一般债务转贷收入 | E80: 安排预算稳定调节基金
A81: 接受其他地区援助收入 | E81: 补充预算周转金
A82: 动用预算稳定调节基金
A85: 收入总计 | B85: =B6+B7 -> 183979 | C85: =C6+C7 -> 182119 | D85: =(C85-B85)/B85 -> -1.01% | E85: 支出总计 | F85: =F6+F7+F75+F76+F77+F79+F80+F81 -> 183979 | G85: =G6+G7+G77 -> 182119 | H85: =(G85-F85)/F85 -> -1.01%

Sheet 2025年一般公共预算“三公”经费会议费培训费支出安排汇总表
A1: 表15
A2: 2025年一般公共预算“三公”经费、会议费、培训费支出预算表
A3: 单位：万元
A4: 项 目 | B4: 2024年预算数 | C4: 2025年预算数 | D4: 较上年预算数增（减）幅%
A5: 一、“三公”经费支出 | B5: =B6+B7+B10 -> 776.88 | C5: 733.22 | D5: =(C5-B5)/B5 -> -5.62% | F5: 720.6
A6: 1．因公出国（境）费 | F6: 2.26
A7: 2．公务用车购置及运行维护费 | B7: =B8+B9 -> 591.32 | C7: 554.49 | D7: -6.23% | F7: 570.11
A8: （1）公务用车购置费 | B8: 100 | C8: 100 | D8: 0.00% | F8: 97
A9: （2）公务用车运行维护费 | B9: 491.32 | C9: 454.49 | D9: -7.50% | F9: 473.11
A10: 3．公务接待费 | B10: 185.56 | C10: 178.73 | D10: -3.68% | F10: 148.23
A11: 二、会议费 | B11: 139.17 | C11: 124.6 | D11: -10.47% | F11: 158.94
A12: 三、培训费 | B12: 346.09 | C12: 344.08 | D12: -0.58% | F12: 374.32
A13: 本表中“三公”经费、会议费、培训费分别含在部门预算（包括行政单位、参公事业单位、事业单位等）基本支出和项目支出。

Sheet 提前下达共同财政事权和专项转移支付补助资金（一般）
A1: 表16
A2: 提前下达2025年共同财政事权和专项转移支付补助资金（一般公共预算）
A3: 序号 | B3: 文号 | C3: 摘要 | D3: 预算数（万元） | E3: 收入科目 | F3: 支出科目
A4: 1 | B4: 甘财金〔2024〕40号 | C4: 关于提前下达2025年中央和省级财政普惠金融发展专项资金的通知 | D4: 47.00 | E4: 1100313 农林水 | F4: 213 农林水支出
A5: 2 | B5: 甘财科〔2024〕79号 | C5: 关于提前下达2025年中央支持地方公共文化服务体系建设补助资金（文化项目）预算的通知 | D5: 10.00 | E5: 1100247 文化体育与传媒共同财政事权转移支付收入 | F5: 2070199 其他文化支出
A6: 3 | B6: 甘财科〔2024〕110号 | C6: 关于提前下达2025年省级非物质文化遗产保护资金预算的通知 | D6: 19.00 | E6: 1100247 文化体育与传媒共同财政事权转移支付收入 | F6: 2070111 文化创作与保护
A7: 4 | B7: 甘财金〔2024〕37号 | C7: 关于提前下达中央财政农业保险保费补贴2025年预算指标的通知 | D7: 1243.00 | E7: 1100252 农林水共同财政事权转移支付收入 | F7: 213 农林水支出
A8: 5 | B8: 甘财政法〔2024〕36号 | C8: 关于提前下达2025年全省公安机关政法纪检监察转移支付资金预算的通知 | D8: 319.00 | E8: 1100244 公共安全共同财政事权转移支付收入 | F8: 2040299 其他公安支出
A9: 6 | B9: 甘财政法〔2024〕32号 | C9: 关于提前下达2025年全省司法行政系统中央政法纪检监察转移支付资金预算的通知 | D9: 90.00 | E9: 1100244 公共安全共同财政事权转移支付收入 | F9: 20406 司法
A10: 7 | B10: 甘财科〔2024〕93号 | C10: 关于提前下达2025年公共体育场馆向社会免费或低收费开放补助资金预算的通知（中央） | D10: 25.90 | E10: 1100208 结算补助收入 | F10: 2070307 体育场馆
A11: 8 | B11: 甘财科〔2024〕93号 | C11: 关于提前下达2025年公共体育场馆向社会免费或低收费开放补助资金预算的通知（省级） | D11: 20.00 | E11: 1100247 文化体育与传媒共同财政事权转移支付收入 | F11: 2070307 体育场馆
A12: 9 | B12: 甘财农〔2024〕92号 | C12: 关于提前下达2025年中央财政农业生态资源保护资金预算的通知 | D12: 440.00 | E12: 1100252 农林水共同财政事权转移支付收入 | F12: 2130135 农业生态资源保护
A13: 10 | B13: 甘财资环〔2024〕110号 | C13: 关于提前下达2025年中央林业草原生态保护恢复资金预算的通知 | D13: 271.00 | E13: 1100226 重点生态功能区转移支付收入 | F13: 2110401 生态保护
A14: 11 | B14: 张财行〔2024〕50号 | C14: 关于提前下达中央2025年解决特殊疑难信访问题资金预算的通知 | D14: 2.00 | E14: 1100208 结算补助收入 | F14: 2014001 信访事务
A15: 12 | B15: 甘财科〔2024〕85号 | C15: 关于提前下达2025年省级科普专项资金预算的通知 | D15: 6.00 | E15: 1100227 固定数额补助收入 | F15: 2060702 科普活动
A16: 13 | B16: 甘财科〔2024〕87号 | C16: 关于提前下达2025年基层科普行动计划项目资金预算的通知 | D16: 10.00 | E16: 1100227 固定数额补助收入 | F16: 2060702 科普活动
A17: 14 | B17: 甘财科〔2024〕86号 | C17: 关于提前下达2025年科技馆免费开放补助资金预算的通知 | D17: 38.00 | E17: 1100208 结算补助收入 | F17: 2060705 科技馆站
A18: 15 | B18: 甘财农〔2024〕97号 | C18: 关于提前下达2025年中央财政耕地建设与利用资金（高标准农田建设）预算的通知 | D18: 5000.00 | E18: 1100252 农林水共同财政事权转移支付收入 | F18: 2130153 耕地建设与利用
A19: 16 | B19: 甘财农〔2024〕93号 | C19: 关于提前下达2025年草原生态保护补助奖励资金预算的通知 | D19: 26870.60 | E19: 1100252 农林水共同财政事权转移支付收入 | F19: 2130135 农业生态资源保护
A20: 17 | B20: 甘财社〔2024〕124号 | C20: 关于提前下达2025年乡村公益性岗位省级补助资金预算的通知 | D20: 30.60 | E20: 1100248 社会保障和就业共同财政事权转移支付收入 | F20: 2080705 公益性岗位补贴
A21: 18 | B21: 甘财资环〔2024〕112号 | C21: 关于提前下达2025年“三北”工程补助资金预算的通知 | D21: 1903.20 | E21: 1102 | F21: 2110401 节能环保支出 | G21: 共同事权
A22: 19 | B22: 甘财科〔2024〕101号 | C22: 关于提前下达2025年度文物保护员补助经费的通知 | D22: 15.60 | E22: 1102 | F22: 2070204 文物保护 | G22: 转移支付
A23: 20 | B23: 甘财资环〔2024〕111号 | C23: 关于提前下达2025年中央林业草原改革发展资金预算的通知 | D23: 162.90 | E23: 1102 | F23: 213 农林水支出 | G23: 转移支付
A24: 21 | B24: 甘财科〔2024〕81号 | C24: 关于提前下达2025年公共图书馆美术馆文化馆（站）免费开放补助资金预算的通知 | D24: 92.00 | E24: 1100208 结算补助收入 | F24: 2070109 群众文化
A25: 22 | B25: 甘财科〔2024〕80号 | C25: 关于提前下达2025年文化人才专项经费预算的通知 | D25: 20.00 | E25: 1100208 结算补助收入 | F25: 2070199 其他文化支出
A26: 23 | B26: 甘财金〔2024〕44号 | C26: 关于提前下达2025年省级财政农业保险保费补贴预算指标的通知 | D26: 1137.00 | E26: 1100252 农林水 | F26: 213
A27: 24 | B27: 甘财农〔2024〕103号 | C27: 关于提前下达2025年省级水利发展资金的通知 | D27: 320.00 | E27: 1100252 农林水 | F27: 213
A28: 25 | B28: 甘财农〔2024〕104号 | C28: 关于提前下达2025年省级水土保持补偿费预算的通知 | D28: 200.00 | E28: 1100313 | F28: 213
A29: 26 | B29: 甘财综〔2024〕62号 | C29: 关于提前下达2025年中央和省级财政城镇保障性安居工程补助资金预算的通知 | D29: 175.00 | E29: 1100258
B30: 合计 | D30: =SUM(D4:D29) -> 38467.80

Sheet 2025年政府性基金预算
A1: 表17
A2: 2025年政府性基金收支预算表
L3: 单位：万元
A4: 收入 | G4: 支出
A5: 项目 | B5: 上年预算数 | C5: 上年执行数 | D5: 预算数 | G5: 项目 | H5: 上年预算数 | I5: 上年执行数 | J5: 预算数
D6: 金额 | E6: 为上年预算数的% | F6: 为上年执行数的% | J6: 金额 | K6: 为上年预算数的% | L6: 为上年执行数的%
A7: 一、农网还贷资金收入 | G7: 一、文化旅游体育与传媒支出 | J7: =SUM(J8:J22) -> 100
A8: 二、海南省高等级公路车辆通行附加费收入 | G8: 国家电影事业发展专项资金安排的支出
A9: 三、国家电影事业发展专项资金收入 | G9: 资助国产影片放映
A10: 四、国有土地收益基金收入 | G10: 资助影院建设
A11: 五、农业土地开发资金收入 | C11: 35 | G11: 资助少数民族语电影译制
A12: 六、国有土地使用权出让收入 | B12: =SUM(B13:B17) -> 500 | C12: =SUM(C13:C17) -> 959 | D12: =SUM(D13:D17) -> 500 | E12: =D12/B12 -> 100.00% | F12: =D12/C12 -> 52.14% | G12: 购买农村电影公益性放映版权服务
A13: 土地出让价款收入 | B13: 500 | C13: 963 | D13: 500 | E13: =D13/B13 -> 100.00% | F13: =D13/C13 -> 51.92% | G13: 其他国家电影事业发展专项资金支出
A14: 补缴的土地价款 | C14: 6 | F14: =D14/C14 -> 0.00% | G14: 旅游发展基金支出
A15: 划拨土地收入 | G15: 宣传促销
A16: 缴纳新增建设用地土地有偿使用费 | C16: -787 | F16: =D16/C16 -> 0.00% | G16: 行业规划
A17: 其他土地出让收入 | C17: 777 | G17: 旅游事业补助
A18: 七、大中型水库库区基金收入 | G18: 地方旅游开发项目补助 | J18: 100
A19: 八、彩票公益金收入 | G19: 其他旅游发展基金支出
A20: 福利彩票公益金收入 | G20: 国家电影事业发展专项资金对应专项债务收入安排的支出
A21: 体育彩票公益金收入 | G21: 资助城市影院
A22: 九、城市基础设施配套费收入 | B22: 20 | C22: 31 | D22: 30 | E22: =D22/B22 -> 150.00% | F22: =D22/C22 -> 96.77% | G22: 其他国家电影事业发展专项资金对应专项债务收入支出
A23: 十、小型水库移民扶助基金收入 | G23: 二、社会保障和就业支出 | H23: =H24+H28+H32 -> 24 | I23: =I24+I28+I32 -> 0 | J23: 48 | K23: =J23/H23 -> 200.00%
A24: 十一、国家重大水利工程建设基金收入 | G24: 大中型水库移民后期扶持基金支出 | H24: =SUM(H25:H26) -> 24 | I24: 0 | J24: =SUM(J25:J26) -> 48 | K24: =J24/H24 -> 200.00%
A25: 十二、车辆通行费 | G25: 移民补助 | H25: 24 | I25: 0 | J25: 48 | K25: =J25/H25 -> 200.00%
A26: 十三、污水处理费收入 | B26: 45 | C26: 46 | D26: 45 | E26: =D26/B26 -> 100.00% | F26: =D26/C26 -> 97.83% | G26: 基础设施建设和经济发展
A27: 十四、彩票发行机构和彩票销售机构的业务费用 | G27: 其他大中型水库移民后期扶持基金支出
A28: 福利彩票销售机构的业务费用 | G28: 小型水库移民扶助基金安排的支出
A29: 体育彩票销售机构的业务费用 | G29: 移民补助
A30: 彩票兑奖周转金 | G30: 基础设施建设和经济发展
A31: 彩票发行销售风险基金 | G31: 其他小型水库移民扶助基金支出
A32: 彩票市场调控资金收入 | G32: 小型水库移民扶助基金对应专项债务收入安排的支出
A33: 十五、其他政府性基金收入 | G33: 基础设施建设和经济发展
A34: 十六、专项债券对应项目专项收入 | C34: 759 | G34: 其他小型水库移民扶助基金对应专项债务收入安排的支出
G35: 三、节能环保支出
G36: 可再生能源电价附加收入安排的支出
G37: 风力发电补助
G38: 太阳能发电补助
G39: 生物质能发电补助
G40: 其他可再生能源电价附加收入安排的支出
G41: 废弃电器电子产品处理基金支出
G42: 回收处理费用补贴
G43: 信息系统建设
G44: 基金征管经费
G45: 其他废弃电器电子产品处理基金支出
G46: 四、城乡社区支出 | H46: =H47+H63+H67+H68+H74+H78+H82+H86+H92+H95 -> 847 | I46: =I47+I65+I67+I68+I74+I78+I82+I86+I92+I95 -> 1067 | J46: =J47+J63+J67+J68+J74+J78+J82+J86+J92+J95 -> 500 | K46: =J46/H46 -> 59.03% | L46: =J46/I46 -> 46.86%
G47: 国有土地使用权出让收入安排的支出 | H47: =SUM(H48:H59) -> 782 | I47: =SUM(I48:I62) -> 913 | J47: =SUM(J48:J59) -> 500 | K47: =J47/H47 -> 63.94% | L47: =J47/I47 -> 54.76%
G48: 征地和拆迁补偿支出 | H48: 500 | I48: 448 | J48: 275 | K48: =J48/H48 -> 55.00% | L48: =J48/I48 -> 61.38%
G49: 土地开发支出
G50: 城市建设支出 | H50: 182
G51: 农村基础设施建设支出 | H51: 100 | I51: 443 | J51: 225
G52: 补助被征地农民支出
G53: 土地出让业务支出 | I53: 17 | L53: =J53/I53 -> 0.00%
G54: 廉租住房支出
G55: 支付破产或改制企业职工安置费
G56: 棚户区改造支出
G57: 公共租赁住房支出
G58: 保障性住房租金补贴
G59: 其他国有土地使用权出让收入安排的支出
G60: 农业生产发展支出
G61: 农村社会事业支出
G62: 农业农村生态环境支出 | I62: 5 | L62: =J62/I62 -> 0.00%
G63: 国有土地收益基金安排的支出
G64: 征地和拆迁补偿支出
G65: 土地开发支出 | I65: 17
G66: 其他国有土地收益基金支出
G67: 农业土地开发资金安排的支出
G68: 城市基础设施配套费安排的支出 | H68: 20 | I68: 30 | K68: =J68/H68 -> 0.00%
G69: 城市公共设施 | H69: 20 | I69: 30 | K69: =J69/H69 -> 0.00%
G70: 城市环境卫生
G71: 公有房屋
G72: 城市防洪
G73: 其他城市基础设施配套费安排的支出
G74: 污水处理费收入安排的支出 | H74: 45 | I74: 107 | K74: =J74/H74 -> 0.00% | L74: =J74/I74 -> 0.00%
G75: 污水处理设施建设和运营 | H75: 45 | I75: 107 | K75: =J75/H75 -> 0.00% | L75: =J75/I75 -> 0.00%
G76: 代征手续费
G77: 其他污水处理费安排的支出
G78: 土地储备专项债券收入安排的支出
G79: 征地和拆迁补偿支出
G80: 土地开发支出
G81: 其他土地储备专项债券收入安排的支出
G82: 棚户区改造专项债券收入安排的支出
G83: 征地和拆迁补偿支出
G84: 土地开发支出
G85: 其他棚户区改造专项债券收入安排的支出
G86: 城市基础设施配套费对应专项债务收入安排的支出
G87: 城市公共设施
G88: 城市环境卫生
G89: 公有房屋
G90: 城市防洪
G91: 其他城市基础设施配套费对应专项债务收入安排的支出
G92: 污水处理费对应专项债务收入安排的支出
G93: 污水处理设施建设和运营
G94: 其他污水处理费对应专项债务收入安排的支出
G95: 国有土地使用权出让收入对应专项债务收入安排的支出
G96: 征地和拆迁补偿支出
G97: 土地开发支出
G98: 城市建设支出
G99: 农村基础设施建设支出
G100: 廉租住房支出
G101: 棚户区改造支出
G102: 公共租赁住房支出
G103: 其他国有土地使用权出让收入对应专项债务收入安排的支出
G104: 五、农林水支出 | I104: 24
G105: 大中型水库库区基金安排的支出 | I105: 24
G106: 基础设施建设和经济发展
G107: 解决移民遗留问题 | I107: 24
G108: 库区防护工程维护
G109: 其他大中型水库库区基金支出
G110: 三峡水库库区基金支出
G111: 基础设施建设和经济发展
G112: 解决移民遗留问题
G113: 库区维护和管理
G114: 其他三峡水库库区基金支出
G115: 国家重大水利工程建设基金安排的支出
G116: 南水北调工程建设
G117: 三峡后续工作
G118: 地方重大水利工程建设
G119: 其他重大水利工程建设基金支出
G120: 六、交通运输支出
G121: 海南省高等级公路车辆通行附加费安排的支出
G122: 公路建设
G123: 公路养护
G124: 公路还贷
G125: 其他海南省高等级公路车辆通行附加费安排的支出
G126: 车辆通行费安排的支出
G127: 公路还贷
G128: 政府还贷公路养护
G129: 政府还贷公路管理
G130: 其他车辆通行费安排的支出
G131: 铁路建设基金支出
G132: 铁路建设投资
G133: 购置铁路机车车辆
G134: 铁路还贷
G135: 建设项目铺底资金
G136: 勘测设计
G137: 注册资本金
G138: 周转资金
G139: 其他铁路建设基金支出
G140: 船舶油污损害赔偿基金支出
G141: 应急处置费用
G142: 控制清除污染
G143: 损失补偿
G144: 生态恢复
G145: 监视监测
G146: 其他船舶油污损害赔偿基金支出
G147: 民航发展基金支出
G148: 民航机场建设
G149: 空管系统建设
G150: 民航安全
G151: 航线和机场补贴
G152: 民航节能减排
G153: 通用航空发展
G154: 征管经费
G155: 其他民航发展基金支出
G156: 海南省高等级公路车辆通行附加费对应专项债务收入安排的支出
G157: 公路建设
G158: 其他海南省高等级公路车辆通行附加费对应专项债务收入安排的支出
G159: 政府收费公路专项债券收入安排的支出
G160: 公路建设
G161: 其他政府收费公路专项债券收入安排的支出
G162: 车辆通行费对应专项债务收入安排的支出
G163: 七、资源勘探工业信息等支出
G164: 农网还贷资金支出
G165: 地方农网还贷资金支出
G166: 其他农网还贷资金支出
G167: 八、其他支出 | H167: =H168+H172+H181 -> 206 | I167: 2677 | J167: =J168+J172+J181 -> 367 | K167: =J167/H167 -> 178.16% | L167: =J167/I167 -> 13.71%
G168: 其他政府性基金及对应专项债务收入安排的支出 | H168: =SUM(H169:H171) -> 0 | I168: =SUM(I169:I171) -> 2200 | J168: =SUM(J169:J171) -> 0 | L168: =J168/I168 -> 0.00%
G169: 其他政府性基金安排的支出
G170: 其他地方自行试点项目收益专项债券收入安排的支出 | I170: 2200 | L170: =J170/I170 -> 0.00%
G171: 其他政府性基金债务收入安排的支出
G172: 彩票发行销售机构业务费安排的支出
G173: 福利彩票发行机构的业务费支出
G174: 体育彩票发行机构的业务费支出
G175: 福利彩票销售机构的业务费支出
G176: 体育彩票销售机构的业务费支出
G177: 彩票兑奖周转金支出
G178: 彩票发行销售风险基金支出
G179: 彩票市场调控资金支出
G180: 其他彩票发行销售机构业务费安排的支出
G181: 彩票公益金安排的支出 | H181: =SUM(H182:H191) -> 206 | I181: =SUM(I182:I191) -> 477 | J181: =SUM(J182:J191) -> 367 | K181: =J181/H181 -> 178.16% | L181: =J181/I181 -> 76.94%
G182: 用于社会福利的彩票公益金支出 | H182: 195 | I182: 213 | J182: 190 | K182: =J182/H182 -> 97.44% | L182: =J182/I182 -> 89.20%
G183: 用于体育事业的彩票公益金支出 | H183: 0 | I183: 243 | J183: 160 | K183: =J183/H183 ->  | L183: =J183/I183 -> 65.84%
G184: 用于教育事业的彩票公益金支出
G185: 用于红十字事业的彩票公益金支出
G186: 用于残疾人事业的彩票公益金支出 | H186: 11 | I186: 21 | J186: 17 | K186: =J186/H186 -> 154.55% | L186: =J186/I186 -> 80.95%
G187: 用于文化事业的彩票公益金支出
G188: 用于巩固脱贫衔接乡村振兴的彩票公益金支出
G189: 用于法律援助的彩票公益金支出
G190: 用于城乡医疗救助的的彩票公益金支出
G191: 用于其他社会公益事业的彩票公益金支出
G192: 九、债务付息支出 | I192: 2084 | L192: =J192/I192 -> 0.00%
G193: 海南省高等级公路车辆通行附加费债务付息支出
G194: 国家电影事业发展专项资金债务付息支出
G195: 国有土地使用权出让金债务付息支出
G196: 农业土地开发资金债务付息支出
G197: 大中型水库库区基金债务付息支出
G198: 城市基础设施配套费债务付息支出
G199: 小型水库移民扶助基金债务付息支出
G200: 国家重大水利工程建设基金债务付息支出
... 57 more rows

Sheet 提前下达专项资金（基金）
A1: 表18
A2: 提前下达2025年共同财政事权和专项转移支付补助资金（政府性基金预算）
A4: 序号 | B4: 文号 | C4: 摘要 | D4: 预算数（万元） | E4: 收入科目 | F4: 支出科目
A5: 1 | B5: 甘财科〔2024〕82号 | C5: 关于提前下达2025年旅游发展基金补助地方项目资金的通知 | D5: 100.00 | E5: 1100405 文化旅游体育与传媒 | F5: 2070904 地方旅游开发项目补助
A6: 2 | B6: 甘财科〔2024〕92号 | C6: 关于提前下达2025年中央集中彩票公益金支持体育事业专项资金预算的通知 | D6: 25.00 | E6: 1100499 其他收入 | F6: 2296003 用于体育事业的彩票公益金支出
A7: 3 | B7: 甘财农〔2024〕100号 | C7: 关于提前下达2025年中央水库移民扶持基金预算的通知 | D7: 23.70 | F7: 2082201 移民补助
A8: 合计 | D8: =SUBTOTAL(9,D4:D7) -> 148.70

Sheet 2025年社会保险基金预算
A1: 表19
A2: 2025年社会保险基金收支预算表
A3: 单位：万元
A4: 项 目 | B4: 合计 | C4: 企业职工基本养老保险基金 | D4: 城乡居民基本养老保险基金 | E4: 机关事业单位基本养老保险基金 | F4: 职工基本医疗保险(含生育保险)基金 | G4: 城乡居民基本医疗保险基金 | H4: 工伤保险基金 | I4: 失业保险基金
A5: 一、收入 | B5: =SUM(C5:I5) -> 16,952 | C5: 0 | D5: 3,371 | E5: 13,581 | F5: 0 | G5: 0 | H5: 0
A6: 其中:社会保险费收入 | B6: 9,238 | C6: 0 | D6: 1,108 | E6: 8,130 | F6: 0 | G6: 0 | H6: 0
A7: 财政补贴收入 | B7: 7,645 | C7: 0 | D7: 2,245 | E7: 5,400 | F7: 0 | G7: 0 | H7: 0
A8: 利息收入 | B8: 41 | C8: 0 | D8: 18 | E8: 23 | F8: 0 | G8: 0 | H8: 0
A9: 委托投资收益 | B9: 0 | C9: 0 | F9: 0 | G9: 0 | H9: 0
A10: 转移收入 | B10: 28 | C10: 0 | E10: 28 | F10: 0 | G10: 0 | H10: 0
A11: 其他收入 | B11: 0 | C11: 0 | F11: 0 | G11: 0 | H11: 0
A12: 全国统筹调剂资金收入 | B12: 0 | C12: 0 | F12: 0 | G12: 0 | H12: 0
A13: 二、支出 | B13: 16,429 | C13: 0 | D13: 3,086 | E13: 13,343 | F13: 0 | G13: 0 | H13: 0
A14: 其中:社会保险待遇支出 | B14: 15,737 | C14: 0 | D14: 2,394 | E14: 13,343 | F14: 0 | G14: 0 | H14: 0
A15: 转移支出 | B15: 2 | C15: 0 | D15: 2 | F15: 0 | G15: 0 | H15: 0
A16: 其他支出 | B16: 0 | C16: 0 | F16: 0 | G16: 0 | H16: 0
A17: 全国统筹调剂资金支出 | B17: 0 | C17: 0 | F17: 0 | G17: 0 | H17: 0
A18: 三、本年收支结余 | B18: 523 | C18: =SUM(C5)-SUM(C13) -> 0 | D18: 285 | E18: 238 | F18: 0 | G18: 0 | H18: 0 | I18: 0
A19: 四、年末滚存结余 | B19: 3,221 | C19: 0 | D19: 1,720 | E19: 1,501 | F19: 0 | G19: 0 | H19: 0

Sheet 2025年国有资本经营预算
A1: 表20
A2: 2025年国有资本经营收支预算表
A3: 单位：万元
A4: 收 入 | I4: 支 出
A5: 项 目 | B5: 行次 | C5: 执行数 | F5: 预算数 | I5: 项 目 | J5: 行次 | K5: 执行数 | N5: 预算数
C6: 合计 | D6: 省本级 | E6: 地市级及以下 | F6: 合计 | G6: 省本级 | H6: 地市级及以下 | K6: 合计 | L6: 省本级 | M6: 地市级及以下 | N6: 合计 | O6: 省本级 | P6: 地市级及以下
A7: 栏次 | C7: 1 | D7: 2 | E7: 3 | F7: 4 | G7: 5 | H7: 6 | I7: 栏次 | K7: 1 | L7: 2 | M7: 3 | N7: 4 | O7: 5 | P7: 6
A8: 一、利润收入 | B8: 1 | I8: 一、解决历史遗留问题及改革成本支出 | J8: 11 | K8: 168.00 | M8: 168.00 | P8: 46.00
A9: 二、股利、股息收入 | B9: 2 | F9: 30.00 | H9: 30.00 | I9: 二、国有企业资本金注入 | J9: 12
A10: 三、产权转让收入 | B10: 3 | I10: 三、国有企业政策性补贴 | J10: 13
A11: 四、清算收入 | B11: 4 | I11: 四、其他国有资本经营预算支出 | J11: 14
A12: 五、其他国有资本经营预算收入 | B12: 5 | C12: 15.00 | E12: 15.00
A14: 本年收入合计 | B14: 6 | C14: 15.00 | E14: 15.00 | F14: 30.00 | H14: 30.00 | I14: 本年支出合计 | J14: 15 | K14: 168.00 | M14: 168.00 | N14: 46.00 | P14: 46.00
A15: 国有资本经营预算转移支付收入 | B15: 7 | C15: 1.00 | E15: 1.00 | F15: 1.00 | H15: 1.00 | I15: 国有资本经营预算转移支付支出 | J15: 16
A16: 国有资本经营预算上解收入 | B16: 8 | I16: 国有资本经营预算上解支出 | J16: 17
A17: 国有资本经营预算上年结余收入 | B17: 9 | C17: 167.00 | E17: 167.00 | F17: 15.00 | H17: 15.00 | I17: 国有资本经营预算调出资金 | J17: 18
I18: 国有资本经营预算年终结余 | J18: 19 | K18: 15.00 | M18: 15.00
A19: 收 入 总 计 | B19: 10 | C19: 183.00 | E19: 183.00 | F19: 46.00 | H19: 46.00 | I19: 支 出 总 计 | J19: 20 | K19: 183.00 | M19: 183.00 | N19: 46.00 | P19: 46.00

Sheet 2025年政府采购预算
A1: 表21
A2: 2025年度政府采购预算
H3: 单位：元
A4: 序号 | B4: 单位名称 | C4: 项目类型 | D4: 资金来源
D5: 合计 | E5: 部门预算基本支出 | F5: 本级财政专项 | G5: 上级财政专项 | H5: 单位自有及其他
B6: 合计 | D6: =E6+F6+G6+H6 -> 29155286.06 | E6: =SUM(E7:E232) -> 9914506.00 | F6: 12747350.06 | G6: 3694330.00 | H6: 2799100.00
A7: 1 | B7: 中共肃南裕固族自治县县委办公室 | C7: 货物类小计 | D7: 45030.00 | E7: 45030.00
C8: 服务类小计 | D8: 40000.00 | E8: 40000.00
A9: 2 | B9: 肃南裕固族自治县人民代表大会常务委员会办公室 | C9: 货物类小计 | D9: 108900.00 | E9: 98900.00 | F9: 10000.00
C10: 服务类小计 | D10: 190000.00 | E10: 20000.00 | F10: 170000.00
A11: 3 | B11: 肃南裕固族自治县人民政府办公室 | C11: 货物类小计 | D11: 161200.00 | E11: 161200.00
C12: 服务类小计 | D12: 80000.00 | E12: 60000.00 | F12: 20000.00
A13: 4 | B13: 中国人民政治协商会议甘肃省肃南裕固族自治县委员会办公室 | C13: 货物类小计 | D13: 30996.00 | E13: 30996.00
C14: 服务类小计 | D14: 250000.00 | E14: 20000.00 | F14: 230000.00
A15: 5 | B15: 中共肃南裕固族自治县委组织部 | C15: 货物类小计 | D15: =SUM(E15:F15) -> 119800.00 | E15: 89800.00 | F15: 30000.00
C16: 服务类小计 | D16: =SUM(E16:F16) -> 190000.00 | E16: 110000.00 | F16: 80000.00
A17: 6 | B17: 中共肃南裕固族自治县委宣传部 | C17: 货物类小计 | D17: 15000.00 | E17: 15000.00
C18: 服务类小计 | D18: 10000.00 | E18: 10000.00
A19: 7 | B19: 中共肃南裕固族自治县委统战部 | C19: 货物类小计 | D19: 4000.00 | E19: 4000.00
C20: 服务类小计 | D20: 40000.00 | E20: 40000.00
A21: 8 | B21: 中共肃南裕固族自治县委政法委员会 | C21: 货物类小计 | D21: 10000.00 | E21: 10000.00
C22: 服务类小计 | D22: 30000.00 | E22: 30000.00
A23: 9 | B23: 肃南裕固族自治县图书馆 | C23: 货物类小计 | D23: 101150.00 | G23: 101150.00
C24: 服务类小计 | D24: 30000.00 | F24: 30000.00
A25: 10 | B25: 肃南裕固族自治县妇女联合会 | C25: 货物类小计 | D25: 2000.00 | E25: 2000.00
C26: 服务类小计 | D26: 10000.00 | E26: 10000.00
A27: 11 | B27: 中国共产主义青年团甘肃省肃南裕固族自治县委员会 | C27: 货物类小计 | D27: 2400.00 | E27: 2400.00
C28: 服务类小计 | D28: 5000.00 | E28: 5000.00
A29: 12 | B29: 肃南裕固族自治县工商业联合会 | C29: 货物类小计 | D29: 4700.00 | E29: 4700.00
C30: 服务类小计 | D30: 6000.00 | E30: 6000.00
A31: 13 | B31: 肃南裕固族自治县科学技术协会 | C31: 货物类小计 | D31: 12000.00 | E31: 12000.00
C32: 服务类小计 | D32: 65000.00 | E32: 5000.00 | F32: 60000.00
A33: 14 | B33: 肃南裕固族自治县文学艺术界联合会 | C33: 货物类小计 | D33: 15500.00 | E33: 15500.00
C34: 服务类小计 | D34: 68000.00 | E34: 8000.00 | F34: 60000.00
A35: 15 | B35: 中共肃南裕固族自治县委党史研究室 | C35: 货物类小计 | D35: 800.00 | E35: 800.00
C36: 服务类小计 | D36: =SUM(E36:F36) -> 53000.00 | E36: 3000.00 | F36: 50000.00
A37: 16 | B37: 肃南裕固族自治县委社会工作部 | C37: 货物类小计 | D37: 52620.00 | E37: 52620.00
C38: 服务类小计 | D38: 20000.00 | F38: 20000.00
A39: 17 | B39: 肃南裕固族自治县地震局 | C39: 货物类小计 | D39: 38800.00 | E39: 38800.00
C40: 服务类小计 | D40: 7200.00 | E40: 7200.00
A41: 18 | B41: 肃南裕固族自治县统计局 | C41: 货物类小计 | D41: 10100.00 | E41: 10100.00
C42: 服务类小计 | D42: 105000.00 | E42: 4000.00 | F42: 65000.00
A43: 19 | B43: 肃南裕固族自治县政府机关事务管理局 | C43: 货物类小计 | D43: 6000.00 | E43: 6000.00
C44: 服务类小计 | D44: 2203000.00 | E44: 3000.00 | F44: 2200000.00
A45: 20 | B45: 中国共产党肃南裕固族自治县纪律检查委员会 | C45: 货物类小计 | D45: 173000.00 | E45: 173000.00
C46: 服务类小计 | D46: 50000.00 | E46: 50000.00
A47: 21 | B47: 肃南裕固族自治县财政局 | C47: 货物类小计 | D47: =SUM(E47:F47) -> 60000.00 | E47: 22000.00 | F47: 38000.00
C48: 服务类小计 | D48: 85000.00 | E48: 85000.00
A49: 22 | B49: 肃南裕固族自治县财政局皇城财政所 | C49: 货物类小计 | D49: 1000.00 | E49: 1000.00
C50: 服务类小计 | D50: 31000.00 | E50: 31000.00
A51: 23 | B51: 肃南裕固族自治县财政局祁丰财政所 | C51: 货物类小计 | D51: 23000.00 | E51: 23000.00
C52: 服务类小计 | D52: 18000.00 | E52: 18000.00
A53: 24 | B53: 肃南裕固族自治县财政局大河财政所 | C53: 货物类小计 | D53: 2000.00 | E53: 2000.00
C54: 服务类小计 | D54: 34000.00 | E54: 34000.00
A55: 25 | B55: 肃南裕固族自治县财政局马蹄财政所 | C55: 货物类小计 | D55: 0.00 | E55: 0.00
C56: 服务类小计 | D56: 3000.00 | E56: 3000.00
A57: 26 | B57: 肃南裕固族自治县财政局康乐财政所 | C57: 货物类小计 | D57: 2000.00 | E57: 2000.00
C58: 服务类小计 | D58: 42000.00 | E58: 42000.00
A59: 27 | B59: 肃南裕固族自治县财政局明花财政所 | C59: 货物类小计 | D59: 2000.00 | E59: 2000.00
C60: 服务类小计 | D60: 17500.00 | E60: 17500.00
A61: 28 | B61: 肃南裕固族自治县财政局白银财政所 | C61: 货物类小计 | D61: 26800.00 | E61: 26800.00
C62: 服务类小计 | D62: 11000.00 | E62: 11000.00
A63: 29 | B63: 肃南裕固族自治县教育局 | C63: 货物类小计 | D63: =SUM(E63:F63) -> 53260.00 | E63: 18260.00 | F63: 35000.00
C64: 服务类小计 | D64: =SUM(E64) -> 76000.00 | E64: 76000.00
A65: 30 | B65: 肃南裕固族自治县幼儿园 | C65: 货物类小计 | D65: 280000.00 | E65: 280000.00
C66: 服务类小计 | D66: 40000.00 | E66: 40000.00
A67: 31 | B67: 肃南裕固族自治县第一中学 | C67: 货物类小计 | D67: 40000.00 | E67: 40000.00
C68: 服务类小计 | D68: 74000.00 | E68: 74000.00
A69: 32 | B69: 肃南裕固族自治县红湾小学 | C69: 货物类小计 | D69: 16000.00 | E69: 16000.00
C70: 服务类小计 | D70: 0.00 | E70: 0.00
A71: 33 | B71: 肃南裕固族自治县第二中学 | C71: 货物类小计 | D71: 59300.00 | E71: 59300.00
C72: 服务类小计 | D72: 23000.00 | E72: 23000.00
A73: 34 | B73: 肃南裕固族自治县康乐明德学校 | C73: 货物类小计 | D73: 5600.00 | E73: 5600.00
C74: 服务类小计 | D74: 51000.00 | E74: 51000.00
A75: 35 | B75: 肃南裕固族自治县明花学校 | C75: 货物类小计 | D75: 82000.00 | E75: 82000.00
C76: 服务类小计 | D76: 30000.00 | E76: 30000.00
A77: 36 | B77: 肃南裕固族自治县祁丰学校 | C77: 货物类小计 | D77: 27000.00 | E77: 27000.00
C78: 服务类小计 | D78: 0.00 | E78: 0.00
A79: 37 | B79: 肃南裕固族自治县马蹄学校 | C79: 货物类小计 | D79: 34600.00 | E79: 34600.00
C80: 服务类小计 | D80: 3000.00 | E80: 3000.00
A81: 38 | B81: 肃南裕固族自治县泱翔中心小学 | C81: 货物类小计 | D81: 5700.00 | E81: 5700.00
C82: 服务类小计 | D82: 3500.00 | E82: 3500.00
A83: 39 | B83: 肃南裕固族自治县铧尖明德小学 | C83: 货物类小计 | D83: 2000.00 | E83: 2000.00
C84: 服务类小计 | D84: 2000.00 | E84: 2000.00
A85: 40 | B85: 肃南裕固族自治县职业技术教育培训中心 | C85: 货物类小计 | D85: 100000.00 | E85: 70000.00 | G85: 30000.00
C86: 服务类小计 | D86: 108000.00 | E86: 8000.00 | F86: 100000.00
A87: 41 | B87: 肃南裕固族自治县融媒体中心 | C87: 货物类小计 | D87: 23250.00 | E87: 4000.00 | F87: 19250.00
C88: 服务类小计 | D88: 31000.00 | E88: 31000.00
A89: 42 | B89: 肃南裕固族自治县文体广电和旅游局 | C89: 货物类小计 | D89: 38000.00 | E89: 38000.00
C90: 服务类小计 | D90: 50000.00 | E90: 50000.00
A91: 43 | B91: 肃南裕固族自治县民族歌舞团 | C91: 货物类小计 | D91: 10500.00 | E91: 10500.00
C92: 服务类小计 | D92: 17000.00 | E92: 17000.00
A93: 44 | B93: 肃南裕固族自治县民族博物馆 | C93: 货物类小计 | D93: 76000.00 | F93: 76000.00
C94: 服务类小计 | D94: 100000.00 | F94: 100000.00
A95: 45 | B95: 肃南裕固族自治县石窝会议纪念馆 | C95: 货物类小计 | D95: 11000.00 | E95: 11000.00
C96: 服务类小计 | D96: =SUM(E96:F96) -> 140000.00 | E96: 40000.00 | F96: 100000.00
A97: 46 | B97: 肃南裕固族自治县体育运动中心 | C97: 货物类小计 | D97: 2000.00 | E97: 2000.00
C98: 服务类小计 | D98: 15000.00 | E98: 15000.00
A99: 47 | B99: 肃南裕固族自治县审计局 | C99: 货物类小计 | D99: 74120.00 | E99: 71440.00 | G99: 2680.00
C100: 服务类小计 | D100: 8000.00 | E100: 8000.00
A101: 48 | B101: 肃南裕固族自治县市场监督管理局 | C101: 货物类小计 | D101: 60000.00 | E101: 60000.00
C102: 服务类小计 | D102: 85000.00 | E102: 85000.00
A103: 49 | B103: 肃南裕固文化长廊旅游景区管理中心 | C103: 货物类小计 | D103: 3000.00 | E103: 3000.00
C104: 服务类小计 | D104: 23000.00 | E104: 23000.00
A105: 50 | B105: 肃南裕固族自治县马蹄寺旅游区管理委员会 | C105: 货物类小计 | D105: 16400.00 | E105: 16400.00
C106: 服务类小计 | D106: 4000.00 | E106: 4000.00
A107: 51 | B107: 中国共产党肃南裕固族自治县委员会党校 | C107: 货物类小计 | D107: =SUM(E107:F107) -> 63800.00 | E107: 61800.00 | F107: 2000.00
C108: 服务类小计 | D108: =SUM(E108:F108) -> 418500.00 | E108: 13500.00 | F108: 405000.00
A109: 52 | B109: 肃南裕固族自治县民族宗教事务局 | C109: 货物类小计 | D109: 4000.00 | E109: 4000.00
C110: 服务类小计 | D110: 40000.00 | E110: 40000.00
A111: 53 | B111: 肃南裕固族自治县总工会 | C111: 货物类小计 | D111: 21200.00 | H111: 21200.00
C112: 服务类小计 | D112: 180000.00 | H112: 180000.00
A113: 54 | B113: 肃南裕固族自治县司法局 | C113: 货物类小计 | D113: 30000.00 | E113: 30000.00
C114: 服务类小计 | D114: 150000.00 | E114: 150000.00
A115: 55 | B115: 肃南裕固族自治县公安局 | C115: 货物类小计 | D115: 424200.00 | E115: 424200.00
C116: 服务类小计 | D116: 405000.00 | E116: 44000.00 | F116: 361000.00
A117: 56 | B117: 肃南裕固族自治县公安局交通警察大队 | C117: 货物类小计 | D117: 19600.00 | E117: 19600.00
C118: 服务类小计 | D118: 40200.00 | E118: 40200.00
A119: 57 | B119: 肃南裕固族自治县红湾寺镇人民政府 | C119: 货物类小计 | D119: =SUM(E119:F119) -> 247000.00 | E119: 111500.00 | F119: 135500.00
C120: 服务类小计 | D120: =SUM(E120:F120) -> 990000.00 | E120: 520000.00 | F120: 470000.00
A121: 58 | B121: 肃南裕固族自治县皇城镇人民政府 | C121: 货物类小计 | D121: 137000.00 | E121: 137000.00
C122: 服务类小计 | D122: 130000.00 | E122: 130000.00
A123: 59 | B123: 肃南裕固族自治县康乐镇人民政府 | C123: 货物类小计 | D123: 163200.00 | E123: 163200.00
C124: 服务类小计 | D124: 90000.00 | E124: 90000.00
A125: 60 | B125: 肃南裕固族自治县白银蒙古族乡人民政府 | C125: 货物类小计 | D125: 116240.00 | E125: 116240.00
C126: 服务类小计 | D126: 64000.00 | E126: 64000.00
A127: 61 | B127: 肃南裕固族自治县大河乡人民政府 | C127: 货物类小计 | D127: =SUM(E127:F127) -> 213200.00 | E127: 206200.00 | F127: 7000.00
C128: 服务类小计 | D128: 180000.00 | E128: 75000.00 | F128: 105000.00
A129: 62 | B129: 肃南裕固族自治县明花乡人民政府 | C129: 货物类小计 | D129: 24500.00 | E129: 24500.00
C130: 服务类小计 | D130: 650000.00 | E130: 320000.00 | F130: 330000.00
A131: 63 | B131: 肃南裕固族自治县祁丰藏族乡人民政府 | C131: 货物类小计 | D131: 550000.00 | E131: 550000.00
C132: 服务类小计 | D132: 220000.00 | E132: 220000.00
A133: 64 | B133: 肃南裕固族自治县马蹄藏族乡人民政府 | C133: 货物类小计 | D133: 291000.00 | E133: 291000.00
C134: 服务类小计 | D134: 40000.00 | E134: 40000.00
A135: 65 | B135: 肃南裕固族自治县交通运输局 | C135: 货物类小计
C136: 服务类小计
A137: 66 | B137: 肃南裕固族自治县县乡公路管理站 | C137: 货物类小计 | D137: 2500.00 | E137: 2500.00
C138: 服务类小计 | D138: 71000.00 | E138: 27700.00 | F138: 43300.00
A139: 67 | B139: 肃南裕固族自治县应急管理局 | C139: 货物类小计 | D139: 10700.00 | E139: 10700.00
C140: 服务类小计 | D140: 70000.00 | E140: 70000.00
A141: 68 | B141: 肃南裕固族自治县消防救援大队 | C141: 货物类小计 | D141: 8800.00 | E141: 8800.00
C142: 服务类小计 | D142: 164100.00 | E142: 164100.00
A143: 69 | B143: 肃南裕固族自治县供销合作社联社 | C143: 货物类小计 | D143: 12000.00 | E143: 12000.00
C144: 服务类小计 | D144: 2000.00 | E144: 2000.00
A145: 70 | B145: 肃南裕固族自治县发展和改革局 | C145: 货物类小计 | D145: =SUM(E145:F145) -> 108800.00 | E145: 95600.00 | F145: 13200.00
C146: 服务类小计 | D146: =SUM(E146:F146) -> 410000.00 | E146: 80000.00 | F146: 330000.00
A147: 71 | B147: 肃南裕固族自治县大河园区服务中心 | C147: 货物类小计 | D147: 25450.00 | E147: 25450.00
C148: 服务类小计 | D148: 41600.00 | E148: 33600.00 | F148: 8000.00
A149: 72 | B149: 肃南裕固族自治县自然资源局 | C149: 货物类小计 | D149: 65000.00 | E149: 65000.00
C150: 服务类小计 | D150: 200000.00 | E150: 200000.00
A151: 73 | B151: 肃南裕固族自治县林业工作站 | C151: 货物类小计 | D151: 11800.00 | E151: 11800.00
C152: 服务类小计 | D152: 8000.00 | E152: 8000.00
A153: 74 | B153: 肃南裕固族自治县县城园林绿化管理站 | C153: 货物类小计 | D153: 8500.00 | E153: 8500.00
C154: 服务类小计 | D154: =SUM(E154:F154) -> 146500.00 | E154: 5000.00 | F154: 141500.00
A155: 75 | B155: 肃南裕固族自治县明海林场 | C155: 货物类小计 | D155: 15200.00 | E155: 4200.00 | H155: 11000.00
C156: 服务类小计 | D156: 25000.00 | E156: 25000.00
A157: 76 | B157: 肃南裕固族自治县祁青工业集中区管理委员会 | C157: 货物类小计 | D157: 7450.00 | E157: 7450.00
C158: 服务类小计 | D158: 26550.00 | E158: 26550.00
A159: 77 | B159: 肃南裕固族自治县住房和城乡建设局 | C159: 货物类小计 | D159: =SUM(E159:F159) -> 6585000.06 | E159: 125000.00 | F159: 6460000.06
C160: 服务类小计 | D160: 141000.00 | E160: 141000.00
A161: 78 | B161: 肃南裕固族自治县玉水苑管理委员会 | C161: 货物类小计 | D161: 12500.00 | E161: 12500.00
C162: 服务类小计 | D162: 3000.00 | E162: 3000.00
A163: 79 | B163: 张掖市公共资源交易中心肃南县分中心 | C163: 货物类小计 | D163: 6000.00 | E163: 6000.00
C164: 服务类小计 | D164: 16000.00 | E164: 6000.00 | F164: 10000.00
A165: 80 | B165: 肃南裕固族自治县卫生健康局 | C165: 货物类小计 | D165: 130460.00 | E165: 130460.00
C166: 服务类小计 | D166: 160000.00 | E166: 160000.00
A167: 81 | B167: 肃南裕固族自治县人民医院 | C167: 货物类小计 | D167: 1602000.00 | H167: 1602000.00
C168: 服务类小计 | D168: 200000.00 | H168: 200000.00
A169: 82 | B169: 肃南裕固族自治县民族医院 | C169: 货物类小计 | D169: 85500.00 | H169: 85500.00
C170: 服务类小计 | D170: 100000.00 | H170: 100000.00
A171: 83 | B171: 肃南裕固族自治县妇幼保健院 | C171: 货物类小计 | D171: 30000.00 | G171: 30000.00
C172: 服务类小计 | D172: 140000.00 | F172: 10000.00 | G172: 130000.00
A173: 84 | B173: 肃南裕固族自治县疾病预防控制中心 | C173: 货物类小计 | D173: 30000.00 | H173: 30000.00
C174: 服务类小计 | D174: 300000.00 | H174: 300000.00
A175: 85 | B175: 肃南裕固族自治县皇城镇中心卫生院 | C175: 货物类小计 | D175: 76900.00 | H175: 76900.00
C176: 服务类小计 | D176: 77000.00 | H176: 77000.00
A177: 86 | B177: 肃南裕固族自治县祁丰藏族乡中心卫生院 | C177: 货物类小计 | D177: 20000.00 | G177: 20000.00
C178: 服务类小计 | D178: 100000.00 | F178: 30000.00 | G178: 70000.00
A179: 87 | B179: 肃南裕固族自治县马蹄藏族乡中心卫生院 | C179: 货物类小计 | D179: =SUM(F179:G179) -> 53400.00 | F179: 15400.00 | G179: 38000.00
C180: 服务类小计 | D180: 52000.00 | G180: 52000.00
A181: 88 | B181: 肃南裕固族自治县大河乡中心卫生院 | C181: 货物类小计 | D181: 66000.00 | F181: 19000.00 | H181: 47000.00
C182: 服务类小计 | D182: 150000.00 | F182: 15000.00 | G182: 130000.00 | H182: 5000.00
A183: 89 | B183: 肃南裕固族自治县康乐镇中心卫生院 | C183: 货物类小计 | D183: =SUM(E183:H183) -> 95000.00 | E183: 44000.00 | G183: 24000.00 | H183: 27000.00
C184: 服务类小计 | D184: 125000.00 | G184: 125000.00
A185: 90 | B185: 肃南裕固族自治县明花乡中心卫生院 | C185: 货物类小计 | D185: 99600.00 | G185: 99600.00
C186: 服务类小计 | D186: 110000.00 | G186: 110000.00
A187: 91 | B187: 肃南裕固族自治县祁青地区卫生院 | C187: 货物类小计 | D187: 45900.00 | F187: 45900.00
C188: 服务类小计 | D188: 100000.00 | F188: 100000.00
A189: 92 | B189: 肃南裕固族自治县民政局 | C189: 货物类小计 | D189: 47400.00 | E189: 47400.00
C190: 服务类小计 | D190: 20000.00 | E190: 20000.00
A191: 93 | B191: 肃南裕固族自治县退役军人事务局 | C191: 货物类小计 | D191: 9000.00 | E191: 9000.00
C192: 服务类小计 | D192: 26000.00 | E192: 26000.00
A193: 94 | B193: 肃南裕固族自治县残疾人联合会 | C193: 货物类小计 | D193: 8500.00 | E193: 8500.00
C194: 服务类小计 | D194: 3000.00 | E194: 3000.00
A195: 95 | B195: 肃南裕固族自治县人力资源和社会保障局 | C195: 货物类小计 | D195: 104000.00 | E195: 104000.00
C196: 服务类小计 | D196: 200000.00 | E196: 200000.00
A197: 96 | B197: 肃南裕固族自治县农业农村局 | C197: 货物类小计 | D197: =SUM(E197:G197) -> 2724000.00 | E197: 24000.00 | G197: 2700000.00
C198: 服务类小计 | D198: 140000.00 | E198: 140000.00
A199: 97 | B199: 肃南裕固族自治县农村经营指导站 | C199: 货物类小计 | D199: 2000.00 | E199: 2000.00
C200: 服务类小计 | D200: 2600.00 | E200: 2600.00
... 32 more rows
